Workbook

Sheet Données (hidden)
E1: Distance officielle | F1: Sur les épreuvesJeune : Natation : …………..1 min 50 au 100 m Vélo : .......... …….25 km/h Course à pied : ……5 min au km
F2: Natation : ……………1 min 45 au 100 m Vélo route : ………….32 km/h Vélo (cross) : ……….15 km/h Course à pied : ……...4 min:30 au km Ski de fond : …………4 min 30 au km | O2: =K7/1000 -> 0.005
A4: Epreuve | B4: Catégorie | C4: Discipline | E4: Course | G4: Discipline | H4: Distance | I4: Marge Maxi | J4: Marge Mini | K4: Vitesse | L4: Unité | M4: Base de Temps (min / m) | N4: Temps Moyen | O4: Limite Haute 25% (min) | P4: Limite Haute 40% (min) | Q4: Limite Basse (min) | R4: Distance Moyenne | S4: Limite Haute 25% (m) | T4: Limite Haute 40% (m) | U4: Limite Basse (m) | V4: Age Mini | W4: Age Maxi | Y4: vérif distance basse épreuve assimilée / distance officielle | Z4: Vérif distance basse épreuve assimilée / distance base 10%
A5: 10 | B5: 10 | C5: 1 | D5: =CONCATENATE(A5,B5,C5) -> 10101 | E5: Triathlon | F5: Jeune 6-9 | G5: Natation | H5: 50 | I5: =H5*1.1 -> 55 | J5: =H5*0.9 -> 45 | K5: =60+50 -> 110 | L5: Sec/100m | M5: =IF(L5="Sec/100m",((K5)/60/100),(IF(L5="Km/h",60/K5/1000,(IF(L5="Min/km",K5/1000,""))))) -> 0.01833333333 | N5: =H5*M5 -> 0.9166666667 | O5: =N5*1.25 -> 1.145833333 | P5: =N5*1.4 -> 1.283333333 | Q5: =O5*0.8 -> 0.9166666667 | R5: =(N5/M5) -> 50 | S5: =O5/M5 -> 62.5 | T5: =P5/M5 -> 70 | U5: =+R5/2 -> 25 | V5: =VLOOKUP(F5,AGE!F:J,4,FALSE) -> 2015 | W5: =VLOOKUP(F5,AGE!F:J,5,FALSE) -> 2012 | Y5: =IF(U5>R5,"Attention dist basse assimilée > distance officielle",) -> 0 | Z5: =IF(U5>J5,"Attention dist basse assimilée > distance officielle tolérance 10%",) -> 0
A6: 10 | B6: 10 | C6: 2 | D6: =CONCATENATE(A6,B6,C6) -> 10102 | E6: Triathlon | F6: Jeune 6-9 | G6: Cyclisme | H6: 1000 | I6: =H6*1.1 -> 1100 | J6: =H6*0.9 -> 900 | K6: 25 | L6: Km/h | M6: =IF(L6="Sec/100m",((K6)/60/100),(IF(L6="Km/h",60/K6/1000,(IF(L6="Min/km",K6/1000,""))))) -> 0.0024 | N6: =H6*M6 -> 2.4 | O6: =N6*1.25 -> 3 | P6: =N6*1.4 -> 3.36 | Q6: =O6*0.8 -> 2.4 | R6: =N6/M6 -> 1000 | S6: =O6/M6 -> 1250 | T6: =P6/M6 -> 1400 | U6: =+R6/2 -> 500 | V6: =VLOOKUP(F6,AGE!F:J,4,FALSE) -> 2015 | W6: =VLOOKUP(F6,AGE!F:J,5,FALSE) -> 2012 | Y6: 0 | Z6: 0
A7: 10 | B7: 10 | C7: 3 | D7: 10103 | E7: Triathlon | F7: Jeune 6-9 | G7: Course à pied | H7: 500 | I7: 550 | J7: 450 | K7: 5 | L7: Min/km | M7: 0.005 | N7: 2.5 | O7: 3.125 | P7: 3.5 | Q7: =O7*0.8 -> 2.5 | R7: 500 | S7: 625 | T7: 700 | U7: =+R7/2 -> 250 | V7: =VLOOKUP(F7,AGE!F:J,4,FALSE) -> 2015 | W7: =VLOOKUP(F7,AGE!F:J,5,FALSE) -> 2012 | Y7: 0 | Z7: 0
A8: 10 | B8: 10 | C8: 4 | D8: 10104 | E8: Triathlon | F8: Jeune 6-9 | G8: Total | H8: =+SUM(H5:H7) -> 1550 | I8: =SUM(I5:I7) -> 1705 | J8: =SUM(J5:J7) -> 1395 | N8: =SUM(N5:N7) -> 5.816666667 | O8: =SUM(O5:O7) -> 7.270833333 | Q8: =SUM(Q5:Q7) -> 5.816666667 | R8: =SUM(R5:R7) -> 1550 | S8: =SUM(S5:S7) -> 1937.5 | U8: =SUM(U5:U7) -> 775 | V8: =VLOOKUP(F8,AGE!F:J,4,FALSE) -> 2015 | W8: =VLOOKUP(F8,AGE!F:J,5,FALSE) -> 2012 | Y8: 0 | Z8: 0
A9: 10 | B9: 20 | C9: 1 | D9: 10201 | E9: Triathlon | F9: Jeune 8-11 | G9: Natation | H9: 100 | I9: =H9*1.1 -> 110 | J9: =H9*0.9 -> 90 | K9: =60+50 -> 110 | L9: Sec/100m | M9: =IF(L9="Sec/100m",((K9)/60/100),(IF(L9="Km/h",60/K9/1000,(IF(L9="Min/km",K9/1000,""))))) -> 0.01833333333 | N9: =H9*M9 -> 1.833333333 | O9: =N9*1.25 -> 2.291666667 | P9: =N9*1.4 -> 2.566666667 | Q9: =O5 -> 1.145833333 | R9: =N9/M9 -> 100 | S9: =O9/M9 -> 125 | T9: =P9/M9 -> 140 | U9: =IF(S5<J9,S5,J9) -> 62.5 | V9: =VLOOKUP(F9,AGE!F:J,4,FALSE) -> 2013 | W9: =VLOOKUP(F9,AGE!F:J,5,FALSE) -> 2010 | Y9: 0 | Z9: 0
A10: 10 | B10: 20 | C10: 2 | D10: 10202 | E10: Triathlon | F10: Jeune 8-11 | G10: Cyclisme | H10: 2000 | I10: =H10*1.1 -> 2200 | J10: =H10*0.9 -> 1800 | K10: 25 | L10: Km/h | M10: =IF(L10="Sec/100m",((K10)/60/100),(IF(L10="Km/h",60/K10/1000,(IF(L10="Min/km",K10/1000,""))))) -> 0.0024 | N10: =H10*M10 -> 4.8 | O10: =N10*1.25 -> 6 | P10: =N10*1.4 -> 6.72 | Q10: =O6 -> 3 | R10: =N10/M10 -> 2000 | S10: =O10/M10 -> 2500 | T10: =P10/M10 -> 2800 | U10: =IF(S6<J10,S6,J10) -> 1250 | V10: =VLOOKUP(F10,AGE!F:J,4,FALSE) -> 2013 | W10: =VLOOKUP(F10,AGE!F:J,5,FALSE) -> 2010 | Y10: 0 | Z10: 0
A11: 10 | B11: 20 | C11: 3 | D11: 10203 | E11: Triathlon | F11: Jeune 8-11 | G11: Course à pied | H11: 1000 | I11: 1100 | J11: 900 | K11: 5 | L11: Min/km | M11: 0.005 | N11: 5 | O11: 6.25 | P11: 7 | Q11: 3.125 | R11: 1000 | S11: 1250 | T11: 1400 | U11: 625 | V11: =VLOOKUP(F11,AGE!F:J,4,FALSE) -> 2013 | W11: =VLOOKUP(F11,AGE!F:J,5,FALSE) -> 2010 | Y11: 0 | Z11: 0
A12: 10 | B12: 20 | C12: 4 | D12: 10204 | E12: Triathlon | F12: Jeune 8-11 | G12: Total | H12: =+SUM(H9:H11) -> 3100 | I12: =SUM(I9:I11) -> 3410 | J12: =SUM(J9:J11) -> 2790 | N12: =SUM(N9:N11) -> 11.63333333 | O12: =SUM(O9:O11) -> 14.54166667 | Q12: =SUM(Q9:Q11) -> 7.270833333 | R12: =SUM(R9:R11) -> 3100 | S12: =SUM(S9:S11) -> 3875 | U12: =SUM(U9:U11) -> 1937.5 | V12: =VLOOKUP(F12,AGE!F:J,4,FALSE) -> 2013 | W12: =VLOOKUP(F12,AGE!F:J,5,FALSE) -> 2010 | Y12: 0 | Z12: 0
A13: 10 | B13: 30 | C13: 1 | D13: 10301 | E13: Triathlon | F13: Jeune 10-13 | G13: Natation | H13: 200 | I13: =H13*1.1 -> 220 | J13: =H13*0.9 -> 180 | K13: =60+50 -> 110 | L13: Sec/100m | M13: =IF(L13="Sec/100m",((K13)/60/100),(IF(L13="Km/h",60/K13/1000,(IF(L13="Min/km",K13/1000,""))))) -> 0.01833333333 | N13: =H13*M13 -> 3.666666667 | O13: =N13*1.25 -> 4.583333333 | P13: =N13*1.4 -> 5.133333333 | Q13: =O9 -> 2.291666667 | R13: =N13/M13 -> 200 | S13: =O13/M13 -> 250 | T13: =P13/M13 -> 280 | U13: =IF(S9<J13,S9,J13) -> 125 | V13: =VLOOKUP(F13,AGE!F:J,4,FALSE) -> 2011 | W13: =VLOOKUP(F13,AGE!F:J,5,FALSE) -> 2008 | Y13: 0 | Z13: 0
A14: 10 | B14: 30 | C14: 2 | D14: 10302 | E14: Triathlon | F14: Jeune 10-13 | G14: Cyclisme | H14: 4000 | I14: =H14*1.1 -> 4400 | J14: =H14*0.9 -> 3600 | K14: 25 | L14: Km/h | M14: =IF(L14="Sec/100m",((K14)/60/100),(IF(L14="Km/h",60/K14/1000,(IF(L14="Min/km",K14/1000,""))))) -> 0.0024 | N14: =H14*M14 -> 9.6 | O14: =N14*1.25 -> 12 | P14: =N14*1.4 -> 13.44 | Q14: =O10 -> 6 | R14: =N14/M14 -> 4000 | S14: =O14/M14 -> 5000 | T14: =P14/M14 -> 5600 | U14: =IF(S10<J14,S10,J14) -> 2500 | V14: =VLOOKUP(F14,AGE!F:J,4,FALSE) -> 2011 | W14: =VLOOKUP(F14,AGE!F:J,5,FALSE) -> 2008 | Y14: 0 | Z14: 0
A15: 10 | B15: 30 | C15: 3 | D15: 10303 | E15: Triathlon | F15: Jeune 10-13 | G15: Course à pied | H15: 1500 | I15: 1650 | J15: 1350 | K15: 5 | L15: Min/km | M15: 0.005 | N15: 7.5 | O15: 9.375 | P15: 10.5 | Q15: 6.25 | R15: 1500 | S15: 1875 | T15: 2100 | U15: 1250 | V15: =VLOOKUP(F15,AGE!F:J,4,FALSE) -> 2011 | W15: =VLOOKUP(F15,AGE!F:J,5,FALSE) -> 2008 | Y15: 0 | Z15: 0
A16: 10 | B16: 30 | C16: 4 | D16: 10304 | E16: Triathlon | F16: Jeune 10-13 | G16: Total | H16: =+SUM(H13:H15) -> 5700 | I16: =SUM(I13:I15) -> 6270 | J16: =SUM(J13:J15) -> 5130 | N16: =SUM(N13:N15) -> 20.76666667 | O16: =SUM(O13:O15) -> 25.95833333 | Q16: =SUM(Q13:Q15) -> 14.54166667 | R16: =SUM(R13:R15) -> 5700 | S16: =SUM(S13:S15) -> 7125 | U16: =SUM(U13:U15) -> 3875 | V16: =VLOOKUP(F16,AGE!F:J,4,FALSE) -> 2011 | W16: =VLOOKUP(F16,AGE!F:J,5,FALSE) -> 2008 | Y16: 0 | Z16: 0
A17: 10 | B17: 40 | C17: 1 | D17: 10401 | E17: Triathlon | F17: Jeune 12-19 | G17: Natation | H17: 300 | I17: =H17*1.1 -> 330 | J17: =H17*0.9 -> 270 | K17: =60+50 -> 110 | L17: Sec/100m | M17: =IF(L17="Sec/100m",((K17)/60/100),(IF(L17="Km/h",60/K17/1000,(IF(L17="Min/km",K17/1000,""))))) -> 0.01833333333 | N17: =H17*M17 -> 5.5 | O17: =N17*1.25 -> 6.875 | P17: =N17*1.4 -> 7.7 | Q17: =O13 -> 4.583333333 | R17: =N17/M17 -> 300 | S17: =O17/M17 -> 375 | T17: =P17/M17 -> 420 | U17: =IF(S13<J17,S13,J17) -> 250 | V17: =VLOOKUP(F17,AGE!F:J,4,FALSE) -> 2009 | W17: =VLOOKUP(F17,AGE!F:J,5,FALSE) -> 2002 | Y17: 0 | Z17: 0
A18: 10 | B18: 40 | C18: 2 | D18: 10402 | E18: Triathlon | F18: Jeune 12-19 | G18: Cyclisme | H18: 6000 | I18: =H18*1.1 -> 6600 | J18: =H18*0.9 -> 5400 | K18: 25 | L18: Km/h | M18: =IF(L18="Sec/100m",((K18)/60/100),(IF(L18="Km/h",60/K18/1000,(IF(L18="Min/km",K18/1000,""))))) -> 0.0024 | N18: =H18*M18 -> 14.4 | O18: =N18*1.25 -> 18 | P18: =N18*1.4 -> 20.16 | Q18: =O14 -> 12 | R18: =N18/M18 -> 6000 | S18: =O18/M18 -> 7500 | T18: =P18/M18 -> 8400 | U18: =IF(S14<J18,S14,J18) -> 5000 | V18: =VLOOKUP(F18,AGE!F:J,4,FALSE) -> 2009 | W18: =VLOOKUP(F18,AGE!F:J,5,FALSE) -> 2002 | Y18: 0 | Z18: 0
A19: 10 | B19: 40 | C19: 3 | D19: 10403 | E19: Triathlon | F19: Jeune 12-19 | G19: Course à pied | H19: 2000 | I19: 2200 | J19: 1800 | K19: 5 | L19: Min/km | M19: 0.005 | N19: 10 | O19: 12.5 | P19: 14 | Q19: 9.375 | R19: 2000 | S19: 2500 | T19: 2800 | U19: 1800 | V19: =VLOOKUP(F19,AGE!F:J,4,FALSE) -> 2009 | W19: =VLOOKUP(F19,AGE!F:J,5,FALSE) -> 2002 | Y19: 0 | Z19: 0
A20: 10 | B20: 40 | C20: 4 | D20: 10404 | E20: Triathlon | F20: Jeune 12-19 | G20: Total | H20: =+SUM(H17:H19) -> 8300 | I20: =SUM(I17:I19) -> 9130 | J20: =SUM(J17:J19) -> 7470 | N20: =SUM(N17:N19) -> 29.9 | O20: =SUM(O17:O19) -> 37.375 | Q20: =SUM(Q17:Q19) -> 25.95833333 | R20: =SUM(R17:R19) -> 8300 | S20: =SUM(S17:S19) -> 10375 | U20: =SUM(U17:U19) -> 7050 | V20: =VLOOKUP(F20,AGE!F:J,4,FALSE) -> 2009 | W20: =VLOOKUP(F20,AGE!F:J,5,FALSE) -> 2002 | Y20: 0 | Z20: 0
A21: 10 | B21: 41 | C21: 1 | D21: 10411 | E21: Triathlon | F21: Distance XXS | G21: Natation | H21: 250 | I21: =H21*1.1 -> 275 | J21: =H21*0.9 -> 225 | K21: 105 | L21: Sec/100m | M21: =IF(L21="Sec/100m",((K21)/60/100),(IF(L21="Km/h",60/K21/1000,(IF(L21="Min/km",K21/1000,""))))) -> 0.0175 | N21: =H21*M21 -> 4.375 | O21: =N21*1.25 -> 5.46875 | P21: =N21*1.4 -> 6.125 | Q21: =O13 -> 4.583333333 | R21: =N21/M21 -> 250 | S21: =O21/M21 -> 312.5 | T21: =P21/M21 -> 350 | U21: =(N21*0.5)/M21 -> 125 | V21: =VLOOKUP(F21,AGE!F:J,4,FALSE) -> 2009 | W21: =VLOOKUP(F21,AGE!F:J,5,FALSE) -> 1922 | Y21: 0 | Z21: 0
A22: 10 | B22: 41 | C22: 2 | D22: 10412 | E22: Triathlon | F22: Distance XXS | G22: Cyclisme | H22: 7500 | I22: =H22*1.1 -> 8250 | J22: =H22*0.9 -> 6750 | K22: 32 | L22: Km/h | M22: =IF(L22="Sec/100m",((K22)/60/100),(IF(L22="Km/h",60/K22/1000,(IF(L22="Min/km",K22/1000,""))))) -> 0.001875 | N22: =H22*M22 -> 14.0625 | O22: =N22*1.25 -> 17.578125 | P22: 19.6875 | Q22: =O14 -> 12 | R22: =N22/M22 -> 7500 | S22: =O22/M22 -> 9375 | T22: =P22/M22 -> 10500 | U22: =(N22*0.5)/M22 -> 3750 | V22: =VLOOKUP(F22,AGE!F:J,4,FALSE) -> 2009 | W22: =VLOOKUP(F22,AGE!F:J,5,FALSE) -> 1922 | Y22: 0 | Z22: 0
A23: 10 | B23: 41 | C23: 3 | D23: 10413 | E23: Triathlon | F23: Distance XXS | G23: Course à pied | H23: 1750 | I23: 1925 | J23: 1575 | K23: 4.5 | L23: Min/km | M23: 0.0045 | N23: 7.875 | O23: 9.84375 | P23: 11.025 | Q23: =O15 -> 9.375 | R23: 1750 | S23: =O23/M23 -> 2187.5 | T23: =P23/M23 -> 2450 | U23: =(N23*0.5)/M23 -> 875 | V23: =VLOOKUP(F23,AGE!F:J,4,FALSE) -> 2009 | W23: =VLOOKUP(F23,AGE!F:J,5,FALSE) -> 1922 | Y23: 0 | Z23: 0
A24: 10 | B24: 41 | C24: 4 | D24: 10414 | E24: Triathlon | F24: Distance XXS | G24: Total | H24: =+SUM(H21:H23) -> 9500 | I24: =SUM(I21:I23) -> 10450 | J24: =SUM(J21:J23) -> 8550 | N24: =SUM(N21:N23) -> 26.3125 | O24: =SUM(O21:O23) -> 32.890625 | Q24: =SUM(Q21:Q23) -> 25.95833333 | R24: =SUM(R21:R23) -> 9500 | S24: =SUM(S21:S23) -> 11875 | U24: =SUM(U21:U23) -> 4750 | V24: =VLOOKUP(F24,AGE!F:J,4,FALSE) -> 2009 | W24: =VLOOKUP(F24,AGE!F:J,5,FALSE) -> 1922 | Y24: 0 | Z24: 0
A25: 10 | B25: 50 | C25: 1 | D25: 10501 | E25: Triathlon | F25: Distance XS | G25: Natation | H25: 400 | I25: =H25*1.1 -> 440 | J25: =H25*0.9 -> 360 | K25: 105 | L25: Sec/100m | M25: =IF(L25="Sec/100m",((K25)/60/100),(IF(L25="Km/h",60/K25/1000,(IF(L25="Min/km",K25/1000,""))))) -> 0.0175 | N25: =H25*M25 -> 7 | O25: =N25*1.25 -> 8.75 | P25: 9.8 | Q25: =O17 -> 6.875 | R25: =N25/M25 -> 400 | S25: =O25/M25 -> 500 | T25: =P25/M25 -> 560 | U25: =IF(S21<J25,S21,J25) -> 312.5 | V25: =VLOOKUP(F25,AGE!F:J,4,FALSE) -> 2009 | W25: =VLOOKUP(F25,AGE!F:J,5,FALSE) -> 1922 | Y25: 0 | Z25: 0
A26: 10 | B26: 50 | C26: 2 | D26: 10502 | E26: Triathlon | F26: Distance XS | G26: Cyclisme | H26: 10000 | I26: =H26*1.1 -> 11000 | J26: =H26*0.9 -> 9000 | K26: 32 | L26: Km/h | M26: =IF(L26="Sec/100m",((K26)/60/100),(IF(L26="Km/h",60/K26/1000,(IF(L26="Min/km",K26/1000,""))))) -> 0.001875 | N26: =H26*M26 -> 18.75 | O26: =N26*1.25 -> 23.4375 | P26: 26.25 | Q26: =O18 -> 18 | R26: =N26/M26 -> 10000 | S26: =O26/M26 -> 12500 | T26: =P26/M26 -> 14000 | U26: =IF(S22<J26,S22,J26) -> 9000 | V26: =VLOOKUP(F26,AGE!F:J,4,FALSE) -> 2009 | W26: =VLOOKUP(F26,AGE!F:J,5,FALSE) -> 1922 | Y26: 0 | Z26: 0
A27: 10 | B27: 50 | C27: 3 | D27: 10503 | E27: Triathlon | F27: Distance XS | G27: Course à pied | H27: 2500 | I27: 2750 | J27: 2250 | K27: 4.5 | L27: Min/km | M27: 0.0045 | N27: 11.25 | O27: 14.0625 | P27: 15.75 | Q27: =O19 -> 12.5 | R27: 2500 | S27: =O27/M27 -> 3125 | T27: =P27/M27 -> 3500 | U27: 2187.5 | V27: =VLOOKUP(F27,AGE!F:J,4,FALSE) -> 2009 | W27: =VLOOKUP(F27,AGE!F:J,5,FALSE) -> 1922 | Y27: 0 | Z27: 0
A28: 10 | B28: 50 | C28: 4 | D28: 10504 | E28: Triathlon | F28: Distance XS | G28: Total | H28: =+SUM(H25:H27) -> 12900 | I28: =SUM(I25:I27) -> 14190 | J28: =SUM(J25:J27) -> 11610 | N28: =SUM(N25:N27) -> 37 | O28: =SUM(O25:O27) -> 46.25 | Q28: =SUM(Q25:Q27) -> 37.375 | R28: =SUM(R25:R27) -> 12900 | S28: =SUM(S25:S27) -> 16125 | U28: =SUM(U25:U27) -> 11500 | V28: =VLOOKUP(F28,AGE!F:J,4,FALSE) -> 2009 | W28: =VLOOKUP(F28,AGE!F:J,5,FALSE) -> 1922 | Y28: 0 | Z28: 0
A29: 10 | B29: 60 | C29: 1 | D29: 10601 | E29: Triathlon | F29: Distance S | G29: Natation | H29: 750 | I29: =H29*1.1 -> 825 | J29: =H29*0.9 -> 675 | K29: 105 | L29: Sec/100m | M29: =IF(L29="Sec/100m",((K29)/60/100),(IF(L29="Km/h",60/K29/1000,(IF(L29="Min/km",K29/1000,""))))) -> 0.0175 | N29: =H29*M29 -> 13.125 | O29: =N29*1.25 -> 16.40625 | P29: 18.375 | Q29: =O25 -> 8.75 | R29: =N29/M29 -> 750 | S29: =O29/M29 -> 937.5 | T29: =P29/M29 -> 1050 | U29: =IF(S25<J29,S25,J29) -> 500 | V29: =VLOOKUP(F29,AGE!F:J,4,FALSE) -> 2005 | W29: =VLOOKUP(F29,AGE!F:J,5,FALSE) -> 1922 | Y29: 0 | Z29: 0
A30: 10 | B30: 60 | C30: 2 | D30: 10602 | E30: Triathlon | F30: Distance S | G30: Cyclisme | H30: 20000 | I30: =H30*1.1 -> 22000 | J30: =H30*0.9 -> 18000 | K30: 32 | L30: Km/h | M30: =IF(L30="Sec/100m",((K30)/60/100),(IF(L30="Km/h",60/K30/1000,(IF(L30="Min/km",K30/1000,""))))) -> 0.001875 | N30: =H30*M30 -> 37.5 | O30: =N30*1.25 -> 46.875 | P30: 52.5 | Q30: =O26 -> 23.4375 | R30: =N30/M30 -> 20000 | S30: =O30/M30 -> 25000 | T30: =P30/M30 -> 28000 | U30: =IF(S26<J30,S26,J30) -> 12500 | V30: =VLOOKUP(F30,AGE!F:J,4,FALSE) -> 2005 | W30: =VLOOKUP(F30,AGE!F:J,5,FALSE) -> 1922 | Y30: 0 | Z30: 0
A31: 10 | B31: 60 | C31: 3 | D31: 10603 | E31: Triathlon | F31: Distance S | G31: Course à pied | H31: 5000 | I31: 5500 | J31: 4500 | K31: 4.5 | L31: Min/km | M31: 0.0045 | N31: 22.5 | O31: 28.125 | P31: 31.5 | Q31: =O27 -> 14.0625 | R31: 5000 | S31: =O31/M31 -> 6250 | T31: =P31/M31 -> 7000 | U31: 3125 | V31: =VLOOKUP(F31,AGE!F:J,4,FALSE) -> 2005 | W31: =VLOOKUP(F31,AGE!F:J,5,FALSE) -> 1922 | Y31: 0 | Z31: 0
A32: 10 | B32: 60 | C32: 4 | D32: 10604 | E32: Triathlon | F32: Distance S | G32: Total | H32: =+SUM(H29:H31) -> 25750 | I32: =SUM(I29:I31) -> 28325 | J32: =SUM(J29:J31) -> 23175 | N32: =SUM(N29:N31) -> 73.125 | O32: =SUM(O29:O31) -> 91.40625 | Q32: =SUM(Q29:Q31) -> 46.25 | R32: =SUM(R29:R31) -> 25750 | S32: =SUM(S29:S31) -> 32187.5 | U32: =SUM(U29:U31) -> 16125 | V32: =VLOOKUP(F32,AGE!F:J,4,FALSE) -> 2005 | W32: =VLOOKUP(F32,AGE!F:J,5,FALSE) -> 1922 | Y32: 0 | Z32: 0
A33: 10 | B33: 70 | C33: 1 | D33: 10701 | E33: Triathlon | F33: Distance M | G33: Natation | H33: 1500 | I33: =H33*1.1 -> 1650 | J33: =H33*0.9 -> 1350 | K33: 105 | L33: Sec/100m | M33: =IF(L33="Sec/100m",((K33)/60/100),(IF(L33="Km/h",60/K33/1000,(IF(L33="Min/km",K33/1000,""))))) -> 0.0175 | N33: =H33*M33 -> 26.25 | O33: =N33*1.25 -> 32.8125 | P33: 36.75 | Q33: =O29 -> 16.40625 | R33: =N33/M33 -> 1500 | S33: =O33/M33 -> 1875 | T33: =P33/M33 -> 2100 | U33: =IF(S29<J33,S29,J33) -> 937.5 | V33: =VLOOKUP(F33,AGE!F:J,4,FALSE) -> 2003 | W33: =VLOOKUP(F33,AGE!F:J,5,FALSE) -> 1922 | Y33: 0 | Z33: 0
A34: 10 | B34: 70 | C34: 2 | D34: 10702 | E34: Triathlon | F34: Distance M | G34: Cyclisme | H34: 40000 | I34: =H34*1.1 -> 44000 | J34: =H34*0.9 -> 36000 | K34: 32 | L34: Km/h | M34: =IF(L34="Sec/100m",((K34)/60/100),(IF(L34="Km/h",60/K34/1000,(IF(L34="Min/km",K34/1000,""))))) -> 0.001875 | N34: =H34*M34 -> 75 | O34: =N34*1.25 -> 93.75 | P34: 105 | Q34: =O30 -> 46.875 | R34: =N34/M34 -> 40000 | S34: =O34/M34 -> 50000 | T34: =P34/M34 -> 56000 | U34: =IF(S30<J34,S30,J34) -> 25000 | V34: =VLOOKUP(F34,AGE!F:J,4,FALSE) -> 2003 | W34: =VLOOKUP(F34,AGE!F:J,5,FALSE) -> 1922 | Y34: 0 | Z34: 0
A35: 10 | B35: 70 | C35: 3 | D35: 10703 | E35: Triathlon | F35: Distance M | G35: Course à pied | H35: 10000 | I35: 11000 | J35: 9000 | K35: 4.5 | L35: Min/km | M35: 0.0045 | N35: 45 | O35: 56.25 | P35: 63 | Q35: 28.125 | R35: 10000 | S35: 12500 | T35: 14000 | U35: 6250 | V35: =VLOOKUP(F35,AGE!F:J,4,FALSE) -> 2003 | W35: =VLOOKUP(F35,AGE!F:J,5,FALSE) -> 1922 | Y35: 0 | Z35: 0
A36: 10 | B36: 70 | C36: 4 | D36: 10704 | E36: Triathlon | F36: Distance M | G36: Total | H36: =+SUM(H33:H35) -> 51500 | I36: =SUM(I33:I35) -> 56650 | J36: =SUM(J33:J35) -> 46350 | N36: =SUM(N33:N35) -> 146.25 | O36: =SUM(O33:O35) -> 182.8125 | Q36: =SUM(Q33:Q35) -> 91.40625 | R36: =SUM(R33:R35) -> 51500 | S36: =SUM(S33:S35) -> 64375 | U36: =SUM(U33:U35) -> 32187.5 | V36: =VLOOKUP(F36,AGE!F:J,4,FALSE) -> 2003 | W36: =VLOOKUP(F36,AGE!F:J,5,FALSE) -> 1922 | Y36: 0 | Z36: 0
A37: 10 | B37: 80 | C37: 1 | D37: 10801 | E37: Triathlon | F37: Distance L | G37: Natation | H37: 3000 | I37: =H37*1.1 -> 3300 | J37: =H37*0.9 -> 2700 | K37: 105 | L37: Sec/100m | M37: =IF(L37="Sec/100m",((K37)/60/100),(IF(L37="Km/h",60/K37/1000,(IF(L37="Min/km",K37/1000,""))))) -> 0.0175 | N37: =H37*M37 -> 52.5 | O37: =N37*1.25 -> 65.625 | Q37: =O33 -> 32.8125 | R37: =N37/M37 -> 3000 | S37: =O37/M37 -> 3750 | T37: =P37/M37 -> 0 | U37: =IF(S33<J37,S33,J37) -> 1875 | V37: =VLOOKUP(F37,AGE!F:J,4,FALSE) -> 2003 | W37: =VLOOKUP(F37,AGE!F:J,5,FALSE) -> 1922 | Y37: 0 | Z37: 0
A38: 10 | B38: 80 | C38: 2 | D38: 10802 | E38: Triathlon | F38: Distance L | G38: Cyclisme | H38: 80000 | I38: =H38*1.1 -> 88000 | J38: =H38*0.9 -> 72000 | K38: 32 | L38: Km/h | M38: =IF(L38="Sec/100m",((K38)/60/100),(IF(L38="Km/h",60/K38/1000,(IF(L38="Min/km",K38/1000,""))))) -> 0.001875 | N38: =H38*M38 -> 150 | O38: =N38*1.25 -> 187.5 | Q38: =O34 -> 93.75 | R38: =N38/M38 -> 80000 | S38: =O38/M38 -> 100000 | T38: =P38/M38 -> 0 | U38: =IF(S34<J38,S34,J38) -> 50000 | V38: =VLOOKUP(F38,AGE!F:J,4,FALSE) -> 2003 | W38: =VLOOKUP(F38,AGE!F:J,5,FALSE) -> 1922 | Y38: 0 | Z38: 0
A39: 10 | B39: 80 | C39: 3 | D39: 10803 | E39: Triathlon | F39: Distance L | G39: Course à pied | H39: 20000 | I39: 22000 | J39: 18000 | K39: 4.5 | L39: Min/km | M39: 0.0045 | N39: 90 | O39: 112.5 | Q39: 56.25 | R39: 20000 | S39: 25000 | T39: 0 | U39: 12500 | V39: =VLOOKUP(F39,AGE!F:J,4,FALSE) -> 2003 | W39: =VLOOKUP(F39,AGE!F:J,5,FALSE) -> 1922 | Y39: 0 | Z39: 0
A40: 10 | B40: 80 | C40: 4 | D40: 10804 | E40: Triathlon | F40: Distance L | G40: Total | H40: =+SUM(H37:H39) -> 103000 | I40: =SUM(I37:I39) -> 113300 | J40: =SUM(J37:J39) -> 92700 | N40: =SUM(N37:N39) -> 292.5 | O40: =SUM(O37:O39) -> 365.625 | Q40: =SUM(Q37:Q39) -> 182.8125 | R40: =SUM(R37:R39) -> 103000 | S40: =SUM(S37:S39) -> 128750 | U40: =SUM(U37:U39) -> 64375 | V40: =VLOOKUP(F40,AGE!F:J,4,FALSE) -> 2003 | W40: =VLOOKUP(F40,AGE!F:J,5,FALSE) -> 1922 | Y40: 0 | Z40: 0
A41: 10 | B41: 90 | C41: 1 | D41: 10901 | E41: Triathlon | F41: Distance XL | G41: Natation | H41: 4000 | I41: =H41*1.1 -> 4400 | J41: =H41*0.9 -> 3600 | K41: 105 | L41: Sec/100m | M41: =IF(L41="Sec/100m",((K41)/60/100),(IF(L41="Km/h",60/K41/1000,(IF(L41="Min/km",K41/1000,""))))) -> 0.0175 | N41: =H41*M41 -> 70 | O41: =N41*1.25 -> 87.5 | Q41: =O37 -> 65.625 | R41: =N41/M41 -> 4000 | S41: =O41/M41 -> 5000 | T41: =P41/M41 -> 0 | U41: =(N41*0.75)/M41 -> 3000 | V41: =VLOOKUP(F41,AGE!F:J,4,FALSE) -> 2003 | W41: =VLOOKUP(F41,AGE!F:J,5,FALSE) -> 1922 | Y41: 0 | Z41: 0
A42: 10 | B42: 90 | C42: 2 | D42: 10902 | E42: Triathlon | F42: Distance XL | G42: Cyclisme | H42: 120000 | I42: =H42*1.1 -> 132000 | J42: =H42*0.9 -> 108000 | K42: 32 | L42: Km/h | M42: =IF(L42="Sec/100m",((K42)/60/100),(IF(L42="Km/h",60/K42/1000,(IF(L42="Min/km",K42/1000,""))))) -> 0.001875 | N42: =H42*M42 -> 225 | O42: =N42*1.25 -> 281.25 | Q42: =O38 -> 187.5 | R42: =N42/M42 -> 120000 | S42: =O42/M42 -> 150000 | T42: =P42/M42 -> 0 | U42: =(N42*0.75)/M42 -> 90000 | V42: =VLOOKUP(F42,AGE!F:J,4,FALSE) -> 2003 | W42: =VLOOKUP(F42,AGE!F:J,5,FALSE) -> 1922 | Y42: 0 | Z42: 0
A43: 10 | B43: 90 | C43: 3 | D43: 10903 | E43: Triathlon | F43: Distance XL | G43: Course à pied | H43: 30000 | I43: 33000 | J43: 27000 | K43: 4.5 | L43: Min/km | M43: 0.0045 | N43: 135 | O43: 168.75 | Q43: 112.5 | R43: 30000 | S43: 37500 | T43: 0 | U43: 22500 | V43: =VLOOKUP(F43,AGE!F:J,4,FALSE) -> 2003 | W43: =VLOOKUP(F43,AGE!F:J,5,FALSE) -> 1922 | Y43: 0 | Z43: 0
A44: 10 | B44: 90 | C44: 4 | D44: 10904 | E44: Triathlon | F44: Distance XL | G44: Total | H44: =+SUM(H41:H43) -> 154000 | I44: =SUM(I41:I43) -> 169400 | J44: =SUM(J41:J43) -> 138600 | N44: =SUM(N41:N43) -> 430 | O44: =SUM(O41:O43) -> 537.5 | Q44: =SUM(Q41:Q43) -> 365.625 | R44: =SUM(R41:R43) -> 154000 | S44: =SUM(S41:S43) -> 192500 | U44: =SUM(U41:U43) -> 115500 | V44: =VLOOKUP(F44,AGE!F:J,4,FALSE) -> 2003 | W44: =VLOOKUP(F44,AGE!F:J,5,FALSE) -> 1922 | Y44: 0 | Z44: 0
A45: 10 | B45: 91 | C45: 1 | D45: 10911 | E45: Triathlon | F45: Distance XXL | G45: Natation | H45: 3800 | I45: =H45*1.1 -> 4180 | J45: =H45*0.9 -> 3420 | K45: 105 | L45: Sec/100m | M45: =IF(L45="Sec/100m",((K45)/60/100),(IF(L45="Km/h",60/K45/1000,(IF(L45="Min/km",K45/1000,""))))) -> 0.0175 | N45: =H45*M45 -> 66.5 | O45: =N45*1.25 -> 83.125 | Q45: =O41 -> 87.5 | R45: =N45/M45 -> 3800 | S45: =O45/M45 -> 4750 | T45: =P45/M45 -> 0 | U45: =(N45*0.75)/M45 -> 2850 | V45: =VLOOKUP(F45,AGE!F:J,4,FALSE) -> 2003 | W45: =VLOOKUP(F45,AGE!F:J,5,FALSE) -> 1922 | Y45: 0 | Z45: 0
A46: 10 | B46: 91 | C46: 2 | D46: 10912 | E46: Triathlon | F46: Distance XXL | G46: Cyclisme | H46: 180000 | I46: =H46*1.1 -> 198000 | J46: =H46*0.9 -> 162000 | K46: 32 | L46: Km/h | M46: =IF(L46="Sec/100m",((K46)/60/100),(IF(L46="Km/h",60/K46/1000,(IF(L46="Min/km",K46/1000,""))))) -> 0.001875 | N46: =H46*M46 -> 337.5 | O46: =N46*1.25 -> 421.875 | Q46: =O42 -> 281.25 | R46: =N46/M46 -> 180000 | S46: =O46/M46 -> 225000 | T46: =P46/M46 -> 0 | U46: =(N46*0.75)/M46 -> 135000 | V46: =VLOOKUP(F46,AGE!F:J,4,FALSE) -> 2003 | W46: =VLOOKUP(F46,AGE!F:J,5,FALSE) -> 1922 | Y46: 0 | Z46: 0
A47: 10 | B47: 91 | C47: 3 | D47: 10913 | E47: Triathlon | F47: Distance XXL | G47: Course à pied | H47: 42195 | I47: 46414.5 | J47: 37975.5 | K47: 4.5 | L47: Min/km | M47: 0.0045 | N47: 189.8775 | O47: 237.346875 | Q47: 168.75 | R47: 42195 | S47: 52743.75 | T47: 0 | U47: 31646.25 | V47: =VLOOKUP(F47,AGE!F:J,4,FALSE) -> 2003 | W47: =VLOOKUP(F47,AGE!F:J,5,FALSE) -> 1922 | Y47: 0 | Z47: 0
A48: 10 | B48: 91 | C48: 4 | D48: 10914 | E48: Triathlon | F48: Distance XXL | G48: Total | H48: =+SUM(H45:H47) -> 225995 | I48: =SUM(I45:I47) -> 248594.5 | J48: =SUM(J45:J47) -> 203395.5 | N48: =SUM(N45:N47) -> 593.8775 | O48: =SUM(O45:O47) -> 742.346875 | Q48: =SUM(Q45:Q47) -> 537.5 | R48: =SUM(R45:R47) -> 225995 | S48: =SUM(S45:S47) -> 282493.75 | U48: =SUM(U45:U47) -> 169496.25 | V48: =VLOOKUP(F48,AGE!F:J,4,FALSE) -> 2003 | W48: =VLOOKUP(F48,AGE!F:J,5,FALSE) -> 1922 | Y48: 0 | Z48: 0
A49: 20 | B49: 10 | C49: 1 | D49: 20101 | E49: Cross Triathlon | F49: Jeune 6-9 | G49: Natation | H49: 50 | I49: =H49*1.1 -> 55 | J49: =H49*0.9 -> 45 | K49: 110 | L49: Sec/100m | M49: =IF(L49="Sec/100m",((K49)/60/100),(IF(L49="Km/h",60/K49/1000,(IF(L49="Min/km",K49/1000,""))))) -> 0.01833333333 | N49: =H49*M49 -> 0.9166666667 | O49: =N49*1.25 -> 1.145833333 | P49: =N49*1.4 -> 1.283333333 | Q49: =O45 -> 83.125 | R49: =N49/M49 -> 50 | S49: =O49/M49 -> 62.5 | T49: =P49/M49 -> 70 | U49: =+R49/2 -> 25 | V49: =VLOOKUP(F49,AGE!F:J,4,FALSE) -> 2015 | W49: =VLOOKUP(F49,AGE!F:J,5,FALSE) -> 2012 | Y49: 0 | Z49: 0
A50: 20 | B50: 10 | C50: 2 | D50: 20102 | E50: Cross Triathlon | F50: Jeune 6-9 | G50: Cyclisme | H50: 1000 | I50: =H50*1.1 -> 1100 | J50: =H50*0.9 -> 900 | K50: 15 | L50: Km/h | M50: =IF(L50="Sec/100m",((K50)/60/100),(IF(L50="Km/h",60/K50/1000,(IF(L50="Min/km",K50/1000,""))))) -> 0.004 | N50: =H50*M50 -> 4 | O50: =N50*1.25 -> 5 | P50: =N50*1.4 -> 5.6 | Q50: =O46 -> 421.875 | R50: =N50/M50 -> 1000 | S50: =O50/M50 -> 1250 | T50: =P50/M50 -> 1400 | U50: =+R50/2 -> 500 | V50: =VLOOKUP(F50,AGE!F:J,4,FALSE) -> 2015 | W50: =VLOOKUP(F50,AGE!F:J,5,FALSE) -> 2012 | Y50: 0 | Z50: 0
A51: 20 | B51: 10 | C51: 3 | D51: 20103 | E51: Cross Triathlon | F51: Jeune 6-9 | G51: Course à pied | H51: 500 | I51: 550 | J51: 450 | K51: 5 | L51: Min/km | M51: 0.005 | N51: 2.5 | O51: 3.125 | P51: 3.5 | Q51: 237.346875 | R51: 500 | S51: 625 | T51: 700 | U51: =+R51/2 -> 250 | V51: =VLOOKUP(F51,AGE!F:J,4,FALSE) -> 2015 | W51: =VLOOKUP(F51,AGE!F:J,5,FALSE) -> 2012 | Y51: 0 | Z51: 0
A52: 20 | B52: 10 | C52: 4 | D52: 20104 | E52: Cross Triathlon | F52: Jeune 6-9 | G52: Total | H52: =+SUM(H49:H51) -> 1550 | I52: =SUM(I49:I51) -> 1705 | J52: =SUM(J49:J51) -> 1395 | N52: =SUM(N49:N51) -> 7.416666667 | O52: =SUM(O49:O51) -> 9.270833333 | Q52: =SUM(Q49:Q51) -> 742.346875 | R52: =SUM(R49:R51) -> 1550 | S52: =SUM(S49:S51) -> 1937.5 | U52: =SUM(U49:U51) -> 775 | V52: =VLOOKUP(F52,AGE!F:J,4,FALSE) -> 2015 | W52: =VLOOKUP(F52,AGE!F:J,5,FALSE) -> 2012 | Y52: 0 | Z52: 0
A53: 20 | B53: 20 | C53: 1 | D53: 20201 | E53: Cross Triathlon | F53: Jeune 8-11 | G53: Natation | H53: 100 | I53: =H53*1.1 -> 110 | J53: =H53*0.9 -> 90 | K53: 110 | L53: Sec/100m | M53: =IF(L53="Sec/100m",((K53)/60/100),(IF(L53="Km/h",60/K53/1000,(IF(L53="Min/km",K53/1000,""))))) -> 0.01833333333 | N53: =H53*M53 -> 1.833333333 | O53: =N53*1.25 -> 2.291666667 | P53: =N53*1.4 -> 2.566666667 | Q53: =O49 -> 1.145833333 | R53: =N53/M53 -> 100 | S53: =O53/M53 -> 125 | T53: =P53/M53 -> 140 | U53: =IF(S49<J53,S49,J53) -> 62.5 | V53: =VLOOKUP(F53,AGE!F:J,4,FALSE) -> 2013 | W53: =VLOOKUP(F53,AGE!F:J,5,FALSE) -> 2010 | Y53: 0 | Z53: 0
A54: 20 | B54: 20 | C54: 2 | D54: 20202 | E54: Cross Triathlon | F54: Jeune 8-11 | G54: Cyclisme | H54: 2000 | I54: =H54*1.1 -> 2200 | J54: =H54*0.9 -> 1800 | K54: 15 | L54: Km/h | M54: =IF(L54="Sec/100m",((K54)/60/100),(IF(L54="Km/h",60/K54/1000,(IF(L54="Min/km",K54/1000,""))))) -> 0.004 | N54: =H54*M54 -> 8 | O54: =N54*1.25 -> 10 | P54: =N54*1.4 -> 11.2 | Q54: =O50 -> 5 | R54: =N54/M54 -> 2000 | S54: =O54/M54 -> 2500 | T54: =P54/M54 -> 2800 | U54: =IF(S50<J54,S50,J54) -> 1250 | V54: =VLOOKUP(F54,AGE!F:J,4,FALSE) -> 2013 | W54: =VLOOKUP(F54,AGE!F:J,5,FALSE) -> 2010 | Y54: 0 | Z54: 0
A55: 20 | B55: 20 | C55: 3 | D55: 20203 | E55: Cross Triathlon | F55: Jeune 8-11 | G55: Course à pied | H55: 1000 | I55: 1100 | J55: 900 | K55: 5 | L55: Min/km | M55: 0.005 | N55: 5 | O55: 6.25 | P55: 7 | Q55: 3.125 | R55: 1000 | S55: 1250 | T55: 1400 | U55: 625 | V55: =VLOOKUP(F55,AGE!F:J,4,FALSE) -> 2013 | W55: =VLOOKUP(F55,AGE!F:J,5,FALSE) -> 2010 | Y55: 0 | Z55: 0
A56: 20 | B56: 20 | C56: 4 | D56: 20204 | E56: Cross Triathlon | F56: Jeune 8-11 | G56: Total | H56: =+SUM(H53:H55) -> 3100 | I56: =SUM(I53:I55) -> 3410 | J56: =SUM(J53:J55) -> 2790 | N56: =SUM(N53:N55) -> 14.83333333 | O56: =SUM(O53:O55) -> 18.54166667 | Q56: =SUM(Q53:Q55) -> 9.270833333 | R56: =SUM(R53:R55) -> 3100 | S56: =SUM(S53:S55) -> 3875 | U56: =SUM(U53:U55) -> 1937.5 | V56: =VLOOKUP(F56,AGE!F:J,4,FALSE) -> 2013 | W56: =VLOOKUP(F56,AGE!F:J,5,FALSE) -> 2010 | Y56: 0 | Z56: 0
A57: 20 | B57: 30 | C57: 1 | D57: 20301 | E57: Cross Triathlon | F57: Jeune 10-13 | G57: Natation | H57: 200 | I57: =H57*1.1 -> 220 | J57: =H57*0.9 -> 180 | K57: 110 | L57: Sec/100m | M57: =IF(L57="Sec/100m",((K57)/60/100),(IF(L57="Km/h",60/K57/1000,(IF(L57="Min/km",K57/1000,""))))) -> 0.01833333333 | N57: =H57*M57 -> 3.666666667 | O57: =N57*1.25 -> 4.583333333 | P57: =N57*1.4 -> 5.133333333 | Q57: =O53 -> 2.291666667 | R57: =N57/M57 -> 200 | S57: =O57/M57 -> 250 | T57: =P57/M57 -> 280 | U57: =IF(S53<J57,S53,J57) -> 125 | V57: =VLOOKUP(F57,AGE!F:J,4,FALSE) -> 2011 | W57: =VLOOKUP(F57,AGE!F:J,5,FALSE) -> 2008 | Y57: 0 | Z57: 0
A58: 20 | B58: 30 | C58: 2 | D58: 20302 | E58: Cross Triathlon | F58: Jeune 10-13 | G58: Cyclisme | H58: 4000 | I58: =H58*1.1 -> 4400 | J58: =H58*0.9 -> 3600 | K58: 15 | L58: Km/h | M58: =IF(L58="Sec/100m",((K58)/60/100),(IF(L58="Km/h",60/K58/1000,(IF(L58="Min/km",K58/1000,""))))) -> 0.004 | N58: =H58*M58 -> 16 | O58: =N58*1.25 -> 20 | P58: =N58*1.4 -> 22.4 | Q58: =O54 -> 10 | R58: =N58/M58 -> 4000 | S58: =O58/M58 -> 5000 | T58: =P58/M58 -> 5600 | U58: =IF(S54<J58,S54,J58) -> 2500 | V58: =VLOOKUP(F58,AGE!F:J,4,FALSE) -> 2011 | W58: =VLOOKUP(F58,AGE!F:J,5,FALSE) -> 2008 | Y58: 0 | Z58: 0
A59: 20 | B59: 30 | C59: 3 | D59: 20303 | E59: Cross Triathlon | F59: Jeune 10-13 | G59: Course à pied | H59: 1500 | I59: 1650 | J59: 1350 | K59: 5 | L59: Min/km | M59: 0.005 | N59: 7.5 | O59: 9.375 | P59: 10.5 | Q59: 6.25 | R59: 1500 | S59: 1875 | T59: 2100 | U59: 1250 | V59: =VLOOKUP(F59,AGE!F:J,4,FALSE) -> 2011 | W59: =VLOOKUP(F59,AGE!F:J,5,FALSE) -> 2008 | Y59: 0 | Z59: 0
A60: 20 | B60: 30 | C60: 4 | D60: 20304 | E60: Cross Triathlon | F60: Jeune 10-13 | G60: Total | H60: =+SUM(H57:H59) -> 5700 | I60: =SUM(I57:I59) -> 6270 | J60: =SUM(J57:J59) -> 5130 | N60: =SUM(N57:N59) -> 27.16666667 | O60: =SUM(O57:O59) -> 33.95833333 | Q60: =SUM(Q57:Q59) -> 18.54166667 | R60: =SUM(R57:R59) -> 5700 | S60: =SUM(S57:S59) -> 7125 | U60: =SUM(U57:U59) -> 3875 | V60: =VLOOKUP(F60,AGE!F:J,4,FALSE) -> 2011 | W60: =VLOOKUP(F60,AGE!F:J,5,FALSE) -> 2008 | Y60: 0 | Z60: 0
A61: 20 | B61: 40 | C61: 1 | D61: 20401 | E61: Cross Triathlon | F61: Jeune 12-19 | G61: Natation | H61: 300 | I61: =H61*1.1 -> 330 | J61: =H61*0.9 -> 270 | K61: 110 | L61: Sec/100m | M61: =IF(L61="Sec/100m",((K61)/60/100),(IF(L61="Km/h",60/K61/1000,(IF(L61="Min/km",K61/1000,""))))) -> 0.01833333333 | N61: =H61*M61 -> 5.5 | O61: =N61*1.25 -> 6.875 | P61: =N61*1.4 -> 7.7 | Q61: =O57 -> 4.583333333 | R61: =N61/M61 -> 300 | S61: =O61/M61 -> 375 | T61: =P61/M61 -> 420 | U61: =IF(S57<J61,S57,J61) -> 250 | V61: =VLOOKUP(F61,AGE!F:J,4,FALSE) -> 2009 | W61: =VLOOKUP(F61,AGE!F:J,5,FALSE) -> 2002 | Y61: 0 | Z61: 0
A62: 20 | B62: 40 | C62: 2 | D62: 20402 | E62: Cross Triathlon | F62: Jeune 12-19 | G62: Cyclisme | H62: 6000 | I62: =H62*1.1 -> 6600 | J62: =H62*0.9 -> 5400 | K62: 15 | L62: Km/h | M62: =IF(L62="Sec/100m",((K62)/60/100),(IF(L62="Km/h",60/K62/1000,(IF(L62="Min/km",K62/1000,""))))) -> 0.004 | N62: =H62*M62 -> 24 | O62: =N62*1.25 -> 30 | P62: =N62*1.4 -> 33.6 | Q62: =O58 -> 20 | R62: =N62/M62 -> 6000 | S62: =O62/M62 -> 7500 | T62: =P62/M62 -> 8400 | U62: =IF(S58<J62,S58,J62) -> 5000 | V62: =VLOOKUP(F62,AGE!F:J,4,FALSE) -> 2009 | W62: =VLOOKUP(F62,AGE!F:J,5,FALSE) -> 2002 | Y62: 0 | Z62: 0
A63: 20 | B63: 40 | C63: 3 | D63: 20403 | E63: Cross Triathlon | F63: Jeune 12-19 | G63: Course à pied | H63: 2000 | I63: 2200 | J63: 1800 | K63: 5 | L63: Min/km | M63: 0.005 | N63: 10 | O63: 12.5 | P63: 14 | Q63: 9.375 | R63: 2000 | S63: 2500 | T63: 2800 | U63: 1800 | V63: =VLOOKUP(F63,AGE!F:J,4,FALSE) -> 2009 | W63: =VLOOKUP(F63,AGE!F:J,5,FALSE) -> 2002 | Y63: 0 | Z63: 0
A64: 20 | B64: 40 | C64: 4 | D64: 20404 | E64: Cross Triathlon | F64: Jeune 12-19 | G64: Total | H64: =+SUM(H61:H63) -> 8300 | I64: =SUM(I61:I63) -> 9130 | J64: =SUM(J61:J63) -> 7470 | N64: =SUM(N61:N63) -> 39.5 | O64: =SUM(O61:O63) -> 49.375 | Q64: =SUM(Q61:Q63) -> 33.95833333 | R64: =SUM(R61:R63) -> 8300 | S64: =SUM(S61:S63) -> 10375 | U64: =SUM(U61:U63) -> 7050 | V64: =VLOOKUP(F64,AGE!F:J,4,FALSE) -> 2009 | W64: =VLOOKUP(F64,AGE!F:J,5,FALSE) -> 2002 | Y64: 0 | Z64: 0
A65: 20 | B65: 41 | C65: 1 | D65: 20411 | E65: Cross Triathlon | F65: Distance XXS | G65: Natation | H65: 250 | I65: =H65*1.1 -> 275 | J65: =H65*0.9 -> 225 | K65: 105 | L65: Sec/100m | M65: =IF(L65="Sec/100m",((K65)/60/100),(IF(L65="Km/h",60/K65/1000,(IF(L65="Min/km",K65/1000,""))))) -> 0.0175 | N65: =H65*M65 -> 4.375 | O65: =N65*1.25 -> 5.46875 | P65: =N65*1.4 -> 6.125 | Q65: =O57 -> 4.583333333 | R65: =N65/M65 -> 250 | S65: =O65/M65 -> 312.5 | T65: =P65/M65 -> 350 | U65: =(N65*0.5)/M65 -> 125 | V65: =VLOOKUP(F65,AGE!F:J,4,FALSE) -> 2009 | W65: =VLOOKUP(F65,AGE!F:J,5,FALSE) -> 1922 | Y65: =IF(U65>R65,"Attention dist basse assimilée > distance officielle",) -> 0 | Z65: =IF(U65>J65,"Attention dist basse assimilée > distance officielle tolérance 10%",) -> 0
A66: 20 | B66: 41 | C66: 2 | D66: 20412 | E66: Cross Triathlon | F66: Distance XXS | G66: Cyclisme | H66: 4000 | I66: =H66*1.1 -> 4400 | J66: =H66*0.9 -> 3600 | K66: 15 | L66: Km/h | M66: =IF(L66="Sec/100m",((K66)/60/100),(IF(L66="Km/h",60/K66/1000,(IF(L66="Min/km",K66/1000,""))))) -> 0.004 | N66: =H66*M66 -> 16 | O66: =N66*1.25 -> 20 | P66: 22.4 | Q66: =O58 -> 20 | R66: =N66/M66 -> 4000 | S66: =O66/M66 -> 5000 | T66: =P66/M66 -> 5600 | U66: 2000 | V66: =VLOOKUP(F66,AGE!F:J,4,FALSE) -> 2009 | W66: =VLOOKUP(F66,AGE!F:J,5,FALSE) -> 1922 | Y66: 0 | Z66: 0
A67: 20 | B67: 41 | C67: 3 | D67: 20413 | E67: Cross Triathlon | F67: Distance XXS | G67: Course à pied | H67: 1500 | I67: 1650 | J67: 1350 | K67: 4.5 | L67: Min/km | M67: 0.0045 | N67: 6.75 | O67: 8.4375 | P67: 9.45 | Q67: =O59 -> 9.375 | R67: 1500 | S67: 1875 | T67: 2100 | U67: 750 | V67: =VLOOKUP(F67,AGE!F:J,4,FALSE) -> 2009 | W67: =VLOOKUP(F67,AGE!F:J,5,FALSE) -> 1922 | Y67: 0 | Z67: 0
A68: 20 | B68: 41 | C68: 4 | D68: 20414 | E68: Cross Triathlon | F68: Distance XXS | G68: Total | H68: =+SUM(H65:H67) -> 5750 | I68: =SUM(I65:I67) -> 6325 | J68: =SUM(J65:J67) -> 5175 | N68: =SUM(N65:N67) -> 27.125 | O68: =SUM(O65:O67) -> 33.90625 | Q68: =SUM(Q65:Q67) -> 33.95833333 | R68: =SUM(R65:R67) -> 5750 | S68: =SUM(S65:S67) -> 7187.5 | U68: =SUM(U65:U67) -> 2875 | V68: =VLOOKUP(F68,AGE!F:J,4,FALSE) -> 2009 | W68: =VLOOKUP(F68,AGE!F:J,5,FALSE) -> 1922 | Y68: 0 | Z68: 0
A69: 20 | B69: 50 | C69: 1 | D69: 20501 | E69: Cross Triathlon | F69: Distance XS | G69: Natation | H69: 250 | I69: =H69*1.1 -> 275 | J69: =H69*0.9 -> 225 | K69: 105 | L69: Sec/100m | M69: =IF(L69="Sec/100m",((K69)/60/100),(IF(L69="Km/h",60/K69/1000,(IF(L69="Min/km",K69/1000,""))))) -> 0.0175 | N69: =H69*M69 -> 4.375 | O69: =N69*1.25 -> 5.46875 | P69: =N69*1.4 -> 6.125 | Q69: =O61 -> 6.875 | R69: =N69/M69 -> 250 | S69: =O69/M69 -> 312.5 | T69: =P69/M69 -> 350 | U69: =IF(S65<J69,S65,J69) -> 225 | V69: =VLOOKUP(F69,AGE!F:J,4,FALSE) -> 2009 | W69: =VLOOKUP(F69,AGE!F:J,5,FALSE) -> 1922 | Y69: 0 | Z69: 0
A70: 20 | B70: 50 | C70: 2 | D70: 20502 | E70: Cross Triathlon | F70: Distance XS | G70: Cyclisme | H70: 5500 | I70: =H70*1.1 -> 6050 | J70: =H70*0.9 -> 4950 | K70: 15 | L70: Km/h | M70: =IF(L70="Sec/100m",((K70)/60/100),(IF(L70="Km/h",60/K70/1000,(IF(L70="Min/km",K70/1000,""))))) -> 0.004 | N70: =H70*M70 -> 22 | O70: =N70*1.25 -> 27.5 | P70: 30.8 | Q70: =O62 -> 30 | R70: =N70/M70 -> 5500 | S70: =O70/M70 -> 6875 | T70: =P70/M70 -> 7700 | U70: =IF(S66<J70,S66,J70) -> 4950 | V70: =VLOOKUP(F70,AGE!F:J,4,FALSE) -> 2009 | W70: =VLOOKUP(F70,AGE!F:J,5,FALSE) -> 1922 | Y70: 0 | Z70: 0
A71: 20 | B71: 50 | C71: 3 | D71: 20503 | E71: Cross Triathlon | F71: Distance XS | G71: Course à pied | H71: 2000 | I71: 2200 | J71: 1800 | K71: 4.5 | L71: Min/km | M71: 0.0045 | N71: 9 | O71: 11.25 | P71: 12.6 | Q71: =O63 -> 12.5 | R71: 2000 | S71: 2500 | T71: 2800 | U71: 1800 | V71: =VLOOKUP(F71,AGE!F:J,4,FALSE) -> 2009 | W71: =VLOOKUP(F71,AGE!F:J,5,FALSE) -> 1922 | Y71: 0 | Z71: 0
A72: 20 | B72: 50 | C72: 4 | D72: 20504 | E72: Cross Triathlon | F72: Distance XS | G72: Total | H72: =+SUM(H69:H71) -> 7750 | I72: =SUM(I69:I71) -> 8525 | J72: =SUM(J69:J71) -> 6975 | N72: =SUM(N69:N71) -> 35.375 | O72: =SUM(O69:O71) -> 44.21875 | Q72: =SUM(Q69:Q71) -> 49.375 | R72: =SUM(R69:R71) -> 7750 | S72: =SUM(S69:S71) -> 9687.5 | U72: =SUM(U69:U71) -> 6975 | V72: =VLOOKUP(F72,AGE!F:J,4,FALSE) -> 2009 | W72: =VLOOKUP(F72,AGE!F:J,5,FALSE) -> 1922 | Y72: 0 | Z72: 0
A73: 20 | B73: 60 | C73: 1 | D73: 20601 | E73: Cross Triathlon | F73: Distance S | G73: Natation | H73: 500 | I73: =H73*1.1 -> 550 | J73: =H73*0.9 -> 450 | K73: 105 | L73: Sec/100m | M73: =IF(L73="Sec/100m",((K73)/60/100),(IF(L73="Km/h",60/K73/1000,(IF(L73="Min/km",K73/1000,""))))) -> 0.0175 | N73: =H73*M73 -> 8.75 | O73: =N73*1.25 -> 10.9375 | P73: =N73*1.4 -> 12.25 | Q73: =O69 -> 5.46875 | R73: =N73/M73 -> 500 | S73: =O73/M73 -> 625 | T73: =P73/M73 -> 700 | U73: =IF(S69<J73,S69,J73) -> 312.5 | V73: =VLOOKUP(F73,AGE!F:J,4,FALSE) -> 2005 | W73: =VLOOKUP(F73,AGE!F:J,5,FALSE) -> 1922 | Y73: 0 | Z73: 0
A74: 20 | B74: 60 | C74: 2 | D74: 20602 | E74: Cross Triathlon | F74: Distance S | G74: Cyclisme | H74: 11000 | I74: =H74*1.1 -> 12100 | J74: =H74*0.9 -> 9900 | K74: 15 | L74: Km/h | M74: =IF(L74="Sec/100m",((K74)/60/100),(IF(L74="Km/h",60/K74/1000,(IF(L74="Min/km",K74/1000,""))))) -> 0.004 | N74: =H74*M74 -> 44 | O74: =N74*1.25 -> 55 | P74: 61.6 | Q74: =O70 -> 27.5 | R74: =N74/M74 -> 11000 | S74: =O74/M74 -> 13750 | T74: =P74/M74 -> 15400 | U74: =IF(S70<J74,S70,J74) -> 6875 | V74: =VLOOKUP(F74,AGE!F:J,4,FALSE) -> 2005 | W74: =VLOOKUP(F74,AGE!F:J,5,FALSE) -> 1922 | Y74: 0 | Z74: 0
A75: 20 | B75: 60 | C75: 3 | D75: 20603 | E75: Cross Triathlon | F75: Distance S | G75: Course à pied | H75: 4000 | I75: 4400 | J75: 3600 | K75: 4.5 | L75: Min/km | M75: 0.0045 | N75: 18 | O75: 22.5 | P75: 25.2 | Q75: 11.25 | R75: 4000 | S75: 5000 | T75: 5600 | U75: 2500 | V75: =VLOOKUP(F75,AGE!F:J,4,FALSE) -> 2005 | W75: =VLOOKUP(F75,AGE!F:J,5,FALSE) -> 1922 | Y75: 0 | Z75: 0
A76: 20 | B76: 60 | C76: 4 | D76: 20604 | E76: Cross Triathlon | F76: Distance S | G76: Total | H76: =+SUM(H73:H75) -> 15500 | I76: =SUM(I73:I75) -> 17050 | J76: =SUM(J73:J75) -> 13950 | N76: =SUM(N73:N75) -> 70.75 | O76: =SUM(O73:O75) -> 88.4375 | Q76: =SUM(Q73:Q75) -> 44.21875 | R76: =SUM(R73:R75) -> 15500 | S76: =SUM(S73:S75) -> 19375 | U76: =SUM(U73:U75) -> 9687.5 | V76: =VLOOKUP(F76,AGE!F:J,4,FALSE) -> 2005 | W76: =VLOOKUP(F76,AGE!F:J,5,FALSE) -> 1922 | Y76: 0 | Z76: 0
A77: 20 | B77: 70 | C77: 1 | D77: 20701 | E77: Cross Triathlon | F77: Distance M | G77: Natation | H77: 1000 | I77: =H77*1.1 -> 1100 | J77: =H77*0.9 -> 900 | K77: 105 | L77: Sec/100m | M77: =IF(L77="Sec/100m",((K77)/60/100),(IF(L77="Km/h",60/K77/1000,(IF(L77="Min/km",K77/1000,""))))) -> 0.0175 | N77: =H77*M77 -> 17.5 | O77: =N77*1.25 -> 21.875 | P77: =N77*1.4 -> 24.5 | Q77: =O73 -> 10.9375 | R77: =N77/M77 -> 1000 | S77: =O77/M77 -> 1250 | T77: =P77/M77 -> 1400 | U77: =IF(S73<J77,S73,J77) -> 625 | V77: =VLOOKUP(F77,AGE!F:J,4,FALSE) -> 2003 | W77: =VLOOKUP(F77,AGE!F:J,5,FALSE) -> 1922 | Y77: =IF(U77>R77,"Attention dist basse assimilée > distance officielle",) -> 0 | Z77: =IF(U77>J77,"Attention dist basse assimilée > distance officielle tolérance 10%",) -> 0
A78: 20 | B78: 70 | C78: 2 | D78: =CONCATENATE(A78,B78,C78) -> 20702 | E78: Cross Triathlon | F78: Distance M | G78: Cyclisme | H78: 22000 | I78: =H78*1.1 -> 24200 | J78: =H78*0.9 -> 19800 | K78: 15 | L78: Km/h | M78: =IF(L78="Sec/100m",((K78)/60/100),(IF(L78="Km/h",60/K78/1000,(IF(L78="Min/km",K78/1000,""))))) -> 0.004 | N78: =H78*M78 -> 88 | O78: =N78*1.25 -> 110 | P78: 123.2 | Q78: =O74 -> 55 | R78: =N78/M78 -> 22000 | S78: =O78/M78 -> 27500 | T78: =P78/M78 -> 30800 | U78: =IF(S74<J78,S74,J78) -> 13750 | V78: =VLOOKUP(F78,AGE!F:J,4,FALSE) -> 2003 | W78: =VLOOKUP(F78,AGE!F:J,5,FALSE) -> 1922 | Y78: 0 | Z78: 0
A79: 20 | B79: 70 | C79: 3 | D79: 20703 | E79: Cross Triathlon | F79: Distance M | G79: Course à pied | H79: 8000 | I79: 8800 | J79: 7200 | K79: 4.5 | L79: Min/km | M79: 0.0045 | N79: 36 | O79: 45 | P79: 50.4 | Q79: 22.5 | R79: 8000 | S79: 10000 | T79: 11200 | U79: 5000 | V79: =VLOOKUP(F79,AGE!F:J,4,FALSE) -> 2003 | W79: =VLOOKUP(F79,AGE!F:J,5,FALSE) -> 1922 | Y79: 0 | Z79: 0
A80: 20 | B80: 70 | C80: 4 | D80: 20704 | E80: Cross Triathlon | F80: Distance M | G80: Total | H80: =+SUM(H77:H79) -> 31000 | I80: =SUM(I77:I79) -> 34100 | J80: =SUM(J77:J79) -> 27900 | N80: =SUM(N77:N79) -> 141.5 | O80: =SUM(O77:O79) -> 176.875 | Q80: =SUM(Q77:Q79) -> 88.4375 | R80: =SUM(R77:R79) -> 31000 | S80: =SUM(S77:S79) -> 38750 | U80: =SUM(U77:U79) -> 19375 | V80: =VLOOKUP(F80,AGE!F:J,4,FALSE) -> 2003 | W80: =VLOOKUP(F80,AGE!F:J,5,FALSE) -> 1922 | Y80: 0 | Z80: 0
A81: 20 | B81: 80 | C81: 1 | D81: 20801 | E81: Cross Triathlon | F81: Distance L | G81: Natation | H81: 2000 | I81: =H81*1.1 -> 2200 | J81: =H81*0.9 -> 1800 | K81: 105 | L81: Sec/100m | M81: =IF(L81="Sec/100m",((K81)/60/100),(IF(L81="Km/h",60/K81/1000,(IF(L81="Min/km",K81/1000,""))))) -> 0.0175 | N81: =H81*M81 -> 35 | O81: =N81*1.25 -> 43.75 | Q81: =O77 -> 21.875 | R81: =N81/M81 -> 2000 | S81: =O81/M81 -> 2500 | T81: =P81/M81 -> 0 | U81: =(N81*0.75)/M81 -> 1500 | V81: =VLOOKUP(F81,AGE!F:J,4,FALSE) -> 2003 | W81: =VLOOKUP(F81,AGE!F:J,5,FALSE) -> 1922 | Y81: 0 | Z81: 0
A82: 20 | B82: 80 | C82: 2 | D82: 20802 | E82: Cross Triathlon | F82: Distance L | G82: Cyclisme | H82: 44000 | I82: =H82*1.1 -> 48400 | J82: =H82*0.9 -> 39600 | K82: 15 | L82: Km/h | M82: =IF(L82="Sec/100m",((K82)/60/100),(IF(L82="Km/h",60/K82/1000,(IF(L82="Min/km",K82/1000,""))))) -> 0.004 | N82: =H82*M82 -> 176 | O82: =N82*1.25 -> 220 | Q82: =O78 -> 110 | R82: =N82/M82 -> 44000 | S82: =O82/M82 -> 55000 | T82: =P82/M82 -> 0 | U82: =(N82*0.75)/M82 -> 33000 | V82: =VLOOKUP(F82,AGE!F:J,4,FALSE) -> 2003 | W82: =VLOOKUP(F82,AGE!F:J,5,FALSE) -> 1922 | Y82: 0 | Z82: 0
A83: 20 | B83: 80 | C83: 3 | D83: 20803 | E83: Cross Triathlon | F83: Distance L | G83: Course à pied | H83: 16000 | I83: 17600 | J83: 14400 | K83: 4.5 | L83: Min/km | M83: 0.0045 | N83: 72 | O83: 90 | Q83: 45 | R83: 16000 | S83: 20000 | T83: 0 | U83: 12000 | V83: =VLOOKUP(F83,AGE!F:J,4,FALSE) -> 2003 | W83: =VLOOKUP(F83,AGE!F:J,5,FALSE) -> 1922 | Y83: 0 | Z83: 0
A84: 20 | B84: 80 | C84: 4 | D84: 20804 | E84: Cross Triathlon | F84: Distance L | G84: Total | H84: =+SUM(H81:H83) -> 62000 | I84: =SUM(I81:I83) -> 68200 | J84: =SUM(J81:J83) -> 55800 | N84: =SUM(N81:N83) -> 283 | O84: =SUM(O81:O83) -> 353.75 | Q84: =SUM(Q81:Q83) -> 176.875 | R84: =SUM(R81:R83) -> 62000 | S84: =SUM(S81:S83) -> 77500 | U84: =SUM(U81:U83) -> 46500 | V84: =VLOOKUP(F84,AGE!F:J,4,FALSE) -> 2003 | W84: =VLOOKUP(F84,AGE!F:J,5,FALSE) -> 1922 | Y84: 0 | Z84: 0
A85: 20 | B85: 90 | C85: 1 | D85: 20901 | E85: Cross Triathlon | F85: Distance XL | G85: Natation | H85: 3000 | I85: =H85*1.1 -> 3300 | J85: =H85*0.9 -> 2700 | K85: 105 | L85: Sec/100m | M85: =IF(L85="Sec/100m",((K85)/60/100),(IF(L85="Km/h",60/K85/1000,(IF(L85="Min/km",K85/1000,""))))) -> 0.0175 | N85: =H85*M85 -> 52.5 | O85: =N85*1.25 -> 65.625 | Q85: =O81 -> 43.75 | R85: =N85/M85 -> 3000 | S85: =O85/M85 -> 3750 | T85: =P85/M85 -> 0 | U85: =(N85*0.75)/M85 -> 2250 | V85: =VLOOKUP(F85,AGE!F:J,4,FALSE) -> 2003 | W85: =VLOOKUP(F85,AGE!F:J,5,FALSE) -> 1922 | Y85: 0 | Z85: 0
A86: 20 | B86: 90 | C86: 2 | D86: 20902 | E86: Cross Triathlon | F86: Distance XL | G86: Cyclisme | H86: 66000 | I86: =H86*1.1 -> 72600 | J86: =H86*0.9 -> 59400 | K86: 15 | L86: Km/h | M86: =IF(L86="Sec/100m",((K86)/60/100),(IF(L86="Km/h",60/K86/1000,(IF(L86="Min/km",K86/1000,""))))) -> 0.004 | N86: =H86*M86 -> 264 | O86: =N86*1.25 -> 330 | Q86: =O82 -> 220 | R86: =N86/M86 -> 66000 | S86: =O86/M86 -> 82500 | T86: =P86/M86 -> 0 | U86: =(N86*0.75)/M86 -> 49500 | V86: =VLOOKUP(F86,AGE!F:J,4,FALSE) -> 2003 | W86: =VLOOKUP(F86,AGE!F:J,5,FALSE) -> 1922 | Y86: 0 | Z86: 0
A87: 20 | B87: 90 | C87: 3 | D87: 20903 | E87: Cross Triathlon | F87: Distance XL | G87: Course à pied | H87: 24000 | I87: 26400 | J87: 21600 | K87: 4.5 | L87: Min/km | M87: 0.0045 | N87: 108 | O87: 135 | Q87: 90 | R87: 24000 | S87: 30000 | T87: 0 | U87: 18000 | V87: =VLOOKUP(F87,AGE!F:J,4,FALSE) -> 2003 | W87: =VLOOKUP(F87,AGE!F:J,5,FALSE) -> 1922 | Y87: 0 | Z87: 0
A88: 20 | B88: 90 | C88: 4 | D88: 20904 | E88: Cross Triathlon | F88: Distance XL | G88: Total | H88: =+SUM(H85:H87) -> 93000 | I88: =SUM(I85:I87) -> 102300 | J88: =SUM(J85:J87) -> 83700 | N88: =SUM(N85:N87) -> 424.5 | O88: =SUM(O85:O87) -> 530.625 | Q88: =SUM(Q85:Q87) -> 353.75 | R88: =SUM(R85:R87) -> 93000 | S88: =SUM(S85:S87) -> 116250 | U88: =SUM(U85:U87) -> 69750 | V88: =VLOOKUP(F88,AGE!F:J,4,FALSE) -> 2003 | W88: =VLOOKUP(F88,AGE!F:J,5,FALSE) -> 1922 | Y88: 0 | Z88: 0
A89: 30 | B89: 10 | C89: 1 | D89: 30101 | E89: Duathlon | F89: Jeune 6-9 | G89: Course à pied | H89: 250 | I89: =H89*1.1 -> 275 | J89: =H89*0.9 -> 225 | K89: 5 | L89: Min/km | M89: =IF(L89="Sec/100m",((K89)/60/100),(IF(L89="Km/h",60/K89/1000,(IF(L89="Min/km",K89/1000,""))))) -> 0.005 | N89: =H89*M89 -> 1.25 | O89: =N89*1.25 -> 1.5625 | P89: =N89*1.4 -> 1.75 | Q89: =O85 -> 65.625 | R89: =N89/M89 -> 250 | S89: =O89/M89 -> 312.5 | T89: =P89/M89 -> 350 | U89: =+R89/2 -> 125 | V89: =VLOOKUP(F89,AGE!F:J,4,FALSE) -> 2015 | W89: =VLOOKUP(F89,AGE!F:J,5,FALSE) -> 2012 | Y89: 0 | Z89: 0
A90: 30 | B90: 10 | C90: 2 | D90: 30102 | E90: Duathlon | F90: Jeune 6-9 | G90: Cyclisme | H90: 1000 | I90: =H90*1.1 -> 1100 | J90: =H90*0.9 -> 900 | K90: 15 | L90: Km/h | M90: 0.004 | N90: =H90*M90 -> 4 | O90: =N90*1.25 -> 5 | P90: =N90*1.4 -> 5.6 | Q90: =O86 -> 330 | R90: =N90/M90 -> 1000 | S90: =O90/M90 -> 1250 | T90: =P90/M90 -> 1400 | U90: =+R90/2 -> 500 | V90: =VLOOKUP(F90,AGE!F:J,4,FALSE) -> 2015 | W90: =VLOOKUP(F90,AGE!F:J,5,FALSE) -> 2012 | Y90: 0 | Z90: 0
A91: 30 | B91: 10 | C91: 3 | D91: 30103 | E91: Duathlon | F91: Jeune 6-9 | G91: Course à pied | H91: 250 | I91: 275 | J91: 225 | K91: 5 | L91: Min/km | M91: 0.005 | N91: 1.25 | O91: 1.5625 | P91: 1.75 | Q91: 135 | R91: 250 | S91: 312.5 | T91: 350 | U91: =+R91/2 -> 125 | V91: =VLOOKUP(F91,AGE!F:J,4,FALSE) -> 2015 | W91: =VLOOKUP(F91,AGE!F:J,5,FALSE) -> 2012 | Y91: 0 | Z91: 0
A92: 30 | B92: 10 | C92: 4 | D92: 30104 | E92: Duathlon | F92: Jeune 6-9 | G92: Total | H92: =+SUM(H89:H91) -> 1500 | I92: =SUM(I89:I91) -> 1650 | J92: =SUM(J89:J91) -> 1350 | N92: =SUM(N89:N91) -> 6.5 | O92: =SUM(O89:O91) -> 8.125 | Q92: =SUM(Q89:Q91) -> 530.625 | R92: =SUM(R89:R91) -> 1500 | S92: =SUM(S89:S91) -> 1875 | U92: =SUM(U89:U91) -> 750 | V92: =VLOOKUP(F92,AGE!F:J,4,FALSE) -> 2015 | W92: =VLOOKUP(F92,AGE!F:J,5,FALSE) -> 2012 | Y92: 0 | Z92: 0
A93: 30 | B93: 20 | C93: 1 | D93: 30201 | E93: Duathlon | F93: Jeune 8-11 | G93: Course à pied | H93: 500 | I93: =H93*1.1 -> 550 | J93: =H93*0.9 -> 450 | K93: 5 | L93: Min/km | M93: 0.005 | N93: =H93*M93 -> 2.5 | O93: =N93*1.25 -> 3.125 | P93: =N93*1.4 -> 3.5 | Q93: =O89 -> 1.5625 | R93: =N93/M93 -> 500 | S93: =O93/M93 -> 625 | T93: =P93/M93 -> 700 | U93: =IF(S89<J93,S89,J93) -> 312.5 | V93: =VLOOKUP(F93,AGE!F:J,4,FALSE) -> 2013 | W93: =VLOOKUP(F93,AGE!F:J,5,FALSE) -> 2010 | Y93: 0 | Z93: 0
A94: 30 | B94: 20 | C94: 2 | D94: 30202 | E94: Duathlon | F94: Jeune 8-11 | G94: Cyclisme | H94: 2000 | I94: =H94*1.1 -> 2200 | J94: =H94*0.9 -> 1800 | K94: 15 | L94: Km/h | M94: 0.004 | N94: =H94*M94 -> 8 | O94: =N94*1.25 -> 10 | P94: =N94*1.4 -> 11.2 | Q94: =O90 -> 5 | R94: =N94/M94 -> 2000 | S94: =O94/M94 -> 2500 | T94: =P94/M94 -> 2800 | U94: =IF(S90<J94,S90,J94) -> 1250 | V94: =VLOOKUP(F94,AGE!F:J,4,FALSE) -> 2013 | W94: =VLOOKUP(F94,AGE!F:J,5,FALSE) -> 2010 | Y94: 0 | Z94: 0
A95: 30 | B95: 20 | C95: 3 | D95: 30203 | E95: Duathlon | F95: Jeune 8-11 | G95: Course à pied | H95: 500 | I95: 550 | J95: 450 | K95: 5 | L95: Min/km | M95: 0.005 | N95: 2.5 | O95: 3.125 | P95: 3.5 | Q95: 1.5625 | R95: 500 | S95: 625 | T95: 700 | U95: 312.5 | V95: =VLOOKUP(F95,AGE!F:J,4,FALSE) -> 2013 | W95: =VLOOKUP(F95,AGE!F:J,5,FALSE) -> 2010 | Y95: 0 | Z95: 0
A96: 30 | B96: 20 | C96: 4 | D96: 30204 | E96: Duathlon | F96: Jeune 8-11 | G96: Total | H96: =+SUM(H93:H95) -> 3000 | I96: =SUM(I93:I95) -> 3300 | J96: =SUM(J93:J95) -> 2700 | N96: =SUM(N93:N95) -> 13 | O96: =SUM(O93:O95) -> 16.25 | Q96: =SUM(Q93:Q95) -> 8.125 | R96: =SUM(R93:R95) -> 3000 | S96: =SUM(S93:S95) -> 3750 | U96: =SUM(U93:U95) -> 1875 | V96: =VLOOKUP(F96,AGE!F:J,4,FALSE) -> 2013 | W96: =VLOOKUP(F96,AGE!F:J,5,FALSE) -> 2010 | Y96: 0 | Z96: 0
A97: 30 | B97: 30 | C97: 1 | D97: 30301 | E97: Duathlon | F97: Jeune 10-13 | G97: Course à pied | H97: 750 | I97: =H97*1.1 -> 825 | J97: =H97*0.9 -> 675 | K97: 5 | L97: Min/km | M97: 0.005 | N97: =H97*M97 -> 3.75 | O97: =N97*1.25 -> 4.6875 | P97: =N97*1.4 -> 5.25 | Q97: =O93 -> 3.125 | R97: =N97/M97 -> 750 | S97: =O97/M97 -> 937.5 | T97: =P97/M97 -> 1050 | U97: =IF(S93<J97,S93,J97) -> 625 | V97: =VLOOKUP(F97,AGE!F:J,4,FALSE) -> 2011 | W97: =VLOOKUP(F97,AGE!F:J,5,FALSE) -> 2008 | Y97: 0 | Z97: 0
A98: 30 | B98: 30 | C98: 2 | D98: 30302 | E98: Duathlon | F98: Jeune 10-13 | G98: Cyclisme | H98: 5000 | I98: =H98*1.1 -> 5500 | J98: =H98*0.9 -> 4500 | K98: 15 | L98: Km/h | M98: 0.004 | N98: =H98*M98 -> 20 | O98: =N98*1.25 -> 25 | P98: =N98*1.4 -> 28 | Q98: =O94 -> 10 | R98: =N98/M98 -> 5000 | S98: =O98/M98 -> 6250 | T98: =P98/M98 -> 7000 | U98: =IF(S94<J98,S94,J98) -> 2500 | V98: =VLOOKUP(F98,AGE!F:J,4,FALSE) -> 2011 | W98: =VLOOKUP(F98,AGE!F:J,5,FALSE) -> 2008 | Y98: 0 | Z98: 0
A99: 30 | B99: 30 | C99: 3 | D99: 30303 | E99: Duathlon | F99: Jeune 10-13 | G99: Course à pied | H99: 750 | I99: 825 | J99: 675 | K99: 5 | L99: Min/km | M99: 0.005 | N99: 3.75 | O99: 4.6875 | P99: 5.25 | Q99: 3.125 | R99: 750 | S99: 937.5 | T99: 1050 | U99: 625 | V99: =VLOOKUP(F99,AGE!F:J,4,FALSE) -> 2011 | W99: =VLOOKUP(F99,AGE!F:J,5,FALSE) -> 2008 | Y99: 0 | Z99: 0
A100: 30 | B100: 30 | C100: 4 | D100: 30304 | E100: Duathlon | F100: Jeune 10-13 | G100: Total | H100: =+SUM(H97:H99) -> 6500 | I100: =SUM(I97:I99) -> 7150 | J100: =SUM(J97:J99) -> 5850 | N100: =SUM(N97:N99) -> 27.5 | O100: =SUM(O97:O99) -> 34.375 | Q100: =SUM(Q97:Q99) -> 16.25 | R100: =SUM(R97:R99) -> 6500 | S100: =SUM(S97:S99) -> 8125 | U100: =SUM(U97:U99) -> 3750 | V100: =VLOOKUP(F100,AGE!F:J,4,FALSE) -> 2011 | W100: =VLOOKUP(F100,AGE!F:J,5,FALSE) -> 2008 | Y100: 0 | Z100: 0
A101: 30 | B101: 40 | C101: 1 | D101: 30401 | E101: Duathlon | F101: Jeune 12-19 | G101: Course à pied | H101: 1000 | I101: =H101*1.1 -> 1100 | J101: =H101*0.9 -> 900 | K101: 5 | L101: Min/km | M101: =IF(L101="Sec/100m",((K101)/60/100),(IF(L101="Km/h",60/K101/1000,(IF(L101="Min/km",K101/1000,""))))) -> 0.005 | N101: =H101*M101 -> 5 | O101: =N101*1.25 -> 6.25 | P101: =N101*1.4 -> 7 | Q101: =O97 -> 4.6875 | R101: =N101/M101 -> 1000 | S101: =O101/M101 -> 1250 | T101: =P101/M101 -> 1400 | U101: =IF(S97<J101,S97,J101) -> 900 | V101: =VLOOKUP(F101,AGE!F:J,4,FALSE) -> 2009 | W101: =VLOOKUP(F101,AGE!F:J,5,FALSE) -> 2002 | Y101: 0 | Z101: 0
A102: 30 | B102: 40 | C102: 2 | D102: 30402 | E102: Duathlon | F102: Jeune 12-19 | G102: Cyclisme | H102: 6000 | I102: =H102*1.1 -> 6600 | J102: =H102*0.9 -> 5400 | K102: 15 | L102: Km/h | M102: 0.004 | N102: =H102*M102 -> 24 | O102: =N102*1.25 -> 30 | P102: =N102*1.4 -> 33.6 | Q102: =O98 -> 25 | R102: =N102/M102 -> 6000 | S102: =O102/M102 -> 7500 | T102: =P102/M102 -> 8400 | U102: =IF(S98<J102,S98,J102) -> 5400 | V102: =VLOOKUP(F102,AGE!F:J,4,FALSE) -> 2009 | W102: =VLOOKUP(F102,AGE!F:J,5,FALSE) -> 2002 | Y102: =IF(U102>R102,"Attention dist basse assimilée > distance officielle",) -> 0 | Z102: 0
A103: 30 | B103: 40 | C103: 3 | D103: 30403 | E103: Duathlon | F103: Jeune 12-19 | G103: Course à pied | H103: 1000 | I103: 1100 | J103: 900 | K103: 5 | L103: Min/km | M103: =IF(L103="Sec/100m",((K103)/60/100),(IF(L103="Km/h",60/K103/1000,(IF(L103="Min/km",K103/1000,""))))) -> 0.005 | N103: 5 | O103: 6.25 | P103: 7 | Q103: 4.6875 | R103: 1000 | S103: 1250 | T103: 1400 | U103: 900 | V103: =VLOOKUP(F103,AGE!F:J,4,FALSE) -> 2009 | W103: =VLOOKUP(F103,AGE!F:J,5,FALSE) -> 2002 | Y103: =IF(U103>R103,"Attention dist basse assimilée > distance officielle",) -> 0 | Z103: 0
A104: 30 | B104: 40 | C104: 4 | D104: 30404 | E104: Duathlon | F104: Jeune 12-19 | G104: Total | H104: =+SUM(H101:H103) -> 8000 | I104: =SUM(I101:I103) -> 8800 | J104: =SUM(J101:J103) -> 7200 | N104: =SUM(N101:N103) -> 34 | O104: =SUM(O101:O103) -> 42.5 | Q104: =SUM(Q101:Q103) -> 34.375 | R104: =SUM(R101:R103) -> 8000 | S104: =SUM(S101:S103) -> 10000 | U104: =SUM(U101:U103) -> 7200 | V104: =VLOOKUP(F104,AGE!F:J,4,FALSE) -> 2009 | W104: =VLOOKUP(F104,AGE!F:J,5,FALSE) -> 2002 | Y104: 0 | Z104: 0
A105: 30 | B105: 41 | C105: 1 | D105: 30411 | E105: Duathlon | F105: Distance XXS | G105: Course à pied | H105: 1500 | I105: =H105*1.1 -> 1650 | J105: =H105*0.9 -> 1350 | K105: 4.5 | L105: Min/km | M105: 0.0045 | N105: =H105*M105 -> 6.75 | O105: =N105*1.25 -> 8.4375 | P105: =N105*1.4 -> 9.45 | Q105: =O97 -> 4.6875 | R105: =N105/M105 -> 1500 | S105: =O105/M105 -> 1875 | T105: =P105/M105 -> 2100 | U105: =(N105*0.5)/M105 -> 750 | V105: =VLOOKUP(F105,AGE!F:J,4,FALSE) -> 2009 | W105: =VLOOKUP(F105,AGE!F:J,5,FALSE) -> 1922 | Y105: =IF(U105>R105,"Attention dist basse assimilée > distance officielle",) -> 0 | Z105: =IF(U105>J105,"Attention dist basse assimilée > distance officielle tolérance 10%",) -> 0
A106: 30 | B106: 41 | C106: 2 | D106: 30412 | E106: Duathlon | F106: Distance XXS | G106: Cyclisme | H106: 6000 | I106: =H106*1.1 -> 6600 | J106: =H106*0.9 -> 5400 | K106: 15 | L106: Km/h | M106: 0.004 | N106: =H106*M106 -> 24 | O106: =N106*1.25 -> 30 | P106: 33.6 | Q106: =O98 -> 25 | R106: =N106/M106 -> 6000 | S106: =O106/M106 -> 7500 | T106: =P106/M106 -> 8400 | U106: =(N106*0.5)/M106 -> 3000 | V106: =VLOOKUP(F106,AGE!F:J,4,FALSE) -> 2009 | W106: =VLOOKUP(F106,AGE!F:J,5,FALSE) -> 1922 | Y106: 0 | Z106: 0
A107: 30 | B107: 41 | C107: 3 | D107: 30413 | E107: Duathlon | F107: Distance XXS | G107: Course à pied | H107: 1000 | I107: 1100 | J107: 900 | K107: 4.5 | L107: Min/km | M107: 0.0045 | N107: 4.5 | O107: 5.625 | P107: 6.3 | Q107: =O99 -> 4.6875 | R107: 1000 | S107: 1250 | T107: 1400 | U107: 500 | V107: =VLOOKUP(F107,AGE!F:J,4,FALSE) -> 2009 | W107: =VLOOKUP(F107,AGE!F:J,5,FALSE) -> 1922 | Y107: 0 | Z107: 0
A108: 30 | B108: 41 | C108: 4 | D108: 30414 | E108: Duathlon | F108: Distance XXS | G108: Total | H108: =+SUM(H105:H107) -> 8500 | I108: =SUM(I105:I107) -> 9350 | J108: =SUM(J105:J107) -> 7650 | N108: =SUM(N105:N107) -> 35.25 | O108: =SUM(O105:O107) -> 44.0625 | Q108: =SUM(Q105:Q107) -> 34.375 | R108: =SUM(R105:R107) -> 8500 | S108: =SUM(S105:S107) -> 10625 | U108: =SUM(U105:U107) -> 4250 | V108: =VLOOKUP(F108,AGE!F:J,4,FALSE) -> 2009 | W108: =VLOOKUP(F108,AGE!F:J,5,FALSE) -> 1922 | Y108: 0 | Z108: 0
A109: 30 | B109: 50 | C109: 1 | D109: 30501 | E109: Duathlon | F109: Distance XS | G109: Course à pied | H109: 2500 | I109: =H109*1.1 -> 2750 | J109: =H109*0.9 -> 2250 | K109: 4.5 | L109: Min/km | M109: =IF(L109="Sec/100m",((K109)/60/100),(IF(L109="Km/h",60/K109/1000,(IF(L109="Min/km",K109/1000,""))))) -> 0.0045 | N109: =H109*M109 -> 11.25 | O109: =N109*1.25 -> 14.0625 | P109: =N109*1.4 -> 15.75 | Q109: =O101 -> 6.25 | R109: =N109/M109 -> 2500 | S109: =O109/M109 -> 3125 | T109: =P109/M109 -> 3500 | U109: =IF(S105<J109,S105,J109) -> 1875 | V109: =VLOOKUP(F109,AGE!F:J,4,FALSE) -> 2009 | W109: =VLOOKUP(F109,AGE!F:J,5,FALSE) -> 1922 | Y109: 0 | Z109: 0
A110: 30 | B110: 50 | C110: 2 | D110: 30502 | E110: Duathlon | F110: Distance XS | G110: Cyclisme | H110: 10000 | I110: =H110*1.1 -> 11000 | J110: =H110*0.9 -> 9000 | K110: 15 | L110: Km/h | M110: 0.004 | N110: =H110*M110 -> 40 | O110: =N110*1.25 -> 50 | P110: 56 | Q110: =O102 -> 30 | R110: =N110/M110 -> 10000 | S110: =O110/M110 -> 12500 | T110: =P110/M110 -> 14000 | U110: =IF(S106<J110,S106,J110) -> 7500 | V110: =VLOOKUP(F110,AGE!F:J,4,FALSE) -> 2009 | W110: =VLOOKUP(F110,AGE!F:J,5,FALSE) -> 1922 | Y110: 0 | Z110: 0
A111: 30 | B111: 50 | C111: 3 | D111: 30503 | E111: Duathlon | F111: Distance XS | G111: Course à pied | H111: 1250 | I111: 1375 | J111: 1125 | K111: 4.5 | L111: Min/km | M111: 0.0045 | N111: 5.625 | O111: 7.03125 | P111: 7.875 | Q111: =O103 -> 6.25 | R111: 1250 | S111: 1562.5 | T111: 1750 | U111: 1125 | V111: =VLOOKUP(F111,AGE!F:J,4,FALSE) -> 2009 | W111: =VLOOKUP(F111,AGE!F:J,5,FALSE) -> 1922 | Y111: 0 | Z111: 0
A112: 30 | B112: 50 | C112: 4 | D112: 30504 | E112: Duathlon | F112: Distance XS | G112: Total | H112: =+SUM(H109:H111) -> 13750 | I112: =SUM(I109:I111) -> 15125 | J112: =SUM(J109:J111) -> 12375 | N112: =SUM(N109:N111) -> 56.875 | O112: =SUM(O109:O111) -> 71.09375 | Q112: =SUM(Q109:Q111) -> 42.5 | R112: =SUM(R109:R111) -> 13750 | S112: =SUM(S109:S111) -> 17187.5 | U112: =SUM(U109:U111) -> 10500 | V112: =VLOOKUP(F112,AGE!F:J,4,FALSE) -> 2009 | W112: =VLOOKUP(F112,AGE!F:J,5,FALSE) -> 1922 | Y112: 0 | Z112: 0
A113: 30 | B113: 60 | C113: 1 | D113: 30601 | E113: Duathlon | F113: Distance S | G113: Course à pied | H113: 5000 | I113: =H113*1.1 -> 5500 | J113: =H113*0.9 -> 4500 | K113: 4.5 | L113: Min/km | M113: 0.0045 | N113: =H113*M113 -> 22.5 | O113: =N113*1.25 -> 28.125 | P113: =N113*1.4 -> 31.5 | Q113: =O109 -> 14.0625 | R113: =N113/M113 -> 5000 | S113: =O113/M113 -> 6250 | T113: =P113/M113 -> 7000 | U113: =IF(S109<J113,S109,J113) -> 3125 | V113: =VLOOKUP(F113,AGE!F:J,4,FALSE) -> 2005 | W113: =VLOOKUP(F113,AGE!F:J,5,FALSE) -> 1922 | Y113: 0 | Z113: 0
A114: 30 | B114: 60 | C114: 2 | D114: 30602 | E114: Duathlon | F114: Distance S | G114: Cyclisme | H114: 20000 | I114: =H114*1.1 -> 22000 | J114: =H114*0.9 -> 18000 | K114: 32 | L114: Km/h | M114: 0.001875 | N114: =H114*M114 -> 37.5 | O114: =N114*1.25 -> 46.875 | P114: 52.5 | Q114: =O110 -> 50 | R114: =N114/M114 -> 20000 | S114: =O114/M114 -> 25000 | T114: =P114/M114 -> 28000 | U114: =IF(S110<J114,S110,J114) -> 12500 | V114: =VLOOKUP(F114,AGE!F:J,4,FALSE) -> 2005 | W114: =VLOOKUP(F114,AGE!F:J,5,FALSE) -> 1922 | Y114: 0 | Z114: 0
A115: 30 | B115: 60 | C115: 3 | D115: 30603 | E115: Duathlon | F115: Distance S | G115: Course à pied | H115: 2500 | I115: 2750 | J115: 2250 | K115: 4.5 | L115: Min/km | M115: 0.0045 | N115: 11.25 | O115: 14.0625 | P115: 15.75 | Q115: 7.03125 | R115: 2500 | S115: 3125 | T115: 3500 | U115: 1562.5 | V115: =VLOOKUP(F115,AGE!F:J,4,FALSE) -> 2005 | W115: =VLOOKUP(F115,AGE!F:J,5,FALSE) -> 1922 | Y115: 0 | Z115: 0
A116: 30 | B116: 60 | C116: 4 | D116: 30604 | E116: Duathlon | F116: Distance S | G116: Total | H116: =+SUM(H113:H115) -> 27500 | I116: =SUM(I113:I115) -> 30250 | J116: =SUM(J113:J115) -> 24750 | N116: =SUM(N113:N115) -> 71.25 | O116: =SUM(O113:O115) -> 89.0625 | Q116: =SUM(Q113:Q115) -> 71.09375 | R116: =SUM(R113:R115) -> 27500 | S116: =SUM(S113:S115) -> 34375 | U116: =SUM(U113:U115) -> 17187.5 | V116: =VLOOKUP(F116,AGE!F:J,4,FALSE) -> 2005 | W116: =VLOOKUP(F116,AGE!F:J,5,FALSE) -> 1922 | Y116: 0 | Z116: 0
A117: 30 | B117: 70 | C117: 1 | D117: 30701 | E117: Duathlon | F117: Distance M | G117: Course à pied | H117: 10000 | I117: =H117*1.1 -> 11000 | J117: =H117*0.9 -> 9000 | K117: 4.5 | L117: Min/km | M117: 0.0045 | N117: =H117*M117 -> 45 | O117: =N117*1.25 -> 56.25 | P117: =N117*1.4 -> 63 | Q117: =O113 -> 28.125 | R117: =N117/M117 -> 10000 | S117: =O117/M117 -> 12500 | T117: =P117/M117 -> 14000 | U117: =IF(S113<J117,S113,J117) -> 6250 | V117: =VLOOKUP(F117,AGE!F:J,4,FALSE) -> 2003 | W117: =VLOOKUP(F117,AGE!F:J,5,FALSE) -> 1922 | Y117: 0 | Z117: 0
A118: 30 | B118: 70 | C118: 2 | D118: 30702 | E118: Duathlon | F118: Distance M | G118: Cyclisme | H118: 40000 | I118: =H118*1.1 -> 44000 | J118: =H118*0.9 -> 36000 | K118: 32 | L118: Km/h | M118: 0.001875 | N118: =H118*M118 -> 75 | O118: =N118*1.25 -> 93.75 | P118: 105 | Q118: =O114 -> 46.875 | R118: =N118/M118 -> 40000 | S118: =O118/M118 -> 50000 | T118: =P118/M118 -> 56000 | U118: =IF(S114<J118,S114,J118) -> 25000 | V118: =VLOOKUP(F118,AGE!F:J,4,FALSE) -> 2003 | W118: =VLOOKUP(F118,AGE!F:J,5,FALSE) -> 1922 | Y118: 0 | Z118: 0
A119: 30 | B119: 70 | C119: 3 | D119: 30703 | E119: Duathlon | F119: Distance M | G119: Course à pied | H119: 5000 | I119: 5500 | J119: 4500 | K119: 4.5 | L119: Min/km | M119: 0.0045 | N119: 22.5 | O119: 28.125 | P119: 31.5 | Q119: 14.0625 | R119: 5000 | S119: 6250 | T119: 7000 | U119: 3125 | V119: =VLOOKUP(F119,AGE!F:J,4,FALSE) -> 2003 | W119: =VLOOKUP(F119,AGE!F:J,5,FALSE) -> 1922 | Y119: 0 | Z119: 0
A120: 30 | B120: 70 | C120: 4 | D120: 30704 | E120: Duathlon | F120: Distance M | G120: Total | H120: =+SUM(H117:H119) -> 55000 | I120: =SUM(I117:I119) -> 60500 | J120: =SUM(J117:J119) -> 49500 | N120: =SUM(N117:N119) -> 142.5 | O120: =SUM(O117:O119) -> 178.125 | Q120: =SUM(Q117:Q119) -> 89.0625 | R120: =SUM(R117:R119) -> 55000 | S120: =SUM(S117:S119) -> 68750 | U120: =SUM(U117:U119) -> 34375 | V120: =VLOOKUP(F120,AGE!F:J,4,FALSE) -> 2003 | W120: =VLOOKUP(F120,AGE!F:J,5,FALSE) -> 1922 | Y120: 0 | Z120: 0
A121: 30 | B121: 80 | C121: 1 | D121: 30801 | E121: Duathlon | F121: Distance L | G121: Course à pied | H121: 20000 | I121: =H121*1.1 -> 22000 | J121: =H121*0.9 -> 18000 | K121: 4.5 | L121: Min/km | M121: 0.0045 | N121: =H121*M121 -> 90 | O121: =N121*1.25 -> 112.5 | Q121: =O117 -> 56.25 | R121: =N121/M121 -> 20000 | S121: =O121/M121 -> 25000 | T121: =P121/M121 -> 0 | U121: =IF(S117<J121,S117,J121) -> 12500 | V121: =VLOOKUP(F121,AGE!F:J,4,FALSE) -> 2003 | W121: =VLOOKUP(F121,AGE!F:J,5,FALSE) -> 1922 | Y121: 0 | Z121: 0
A122: 30 | B122: 80 | C122: 2 | D122: 30802 | E122: Duathlon | F122: Distance L | G122: Cyclisme | H122: 80000 | I122: =H122*1.1 -> 88000 | J122: =H122*0.9 -> 72000 | K122: 32 | L122: Km/h | M122: 0.001875 | N122: =H122*M122 -> 150 | O122: =N122*1.25 -> 187.5 | Q122: =O118 -> 93.75 | R122: =N122/M122 -> 80000 | S122: =O122/M122 -> 100000 | T122: =P122/M122 -> 0 | U122: =IF(S118<J122,S118,J122) -> 50000 | V122: =VLOOKUP(F122,AGE!F:J,4,FALSE) -> 2003 | W122: =VLOOKUP(F122,AGE!F:J,5,FALSE) -> 1922 | Y122: 0 | Z122: 0
A123: 30 | B123: 80 | C123: 3 | D123: 30803 | E123: Duathlon | F123: Distance L | G123: Course à pied | H123: 10000 | I123: 11000 | J123: 9000 | K123: 4.5 | L123: Min/km | M123: 0.0045 | N123: =H123*M123 -> 45 | O123: 56.25 | Q123: 28.125 | R123: 10000 | S123: 12500 | T123: 0 | U123: 6250 | V123: =VLOOKUP(F123,AGE!F:J,4,FALSE) -> 2003 | W123: =VLOOKUP(F123,AGE!F:J,5,FALSE) -> 1922 | Y123: 0 | Z123: 0
A124: 30 | B124: 80 | C124: 4 | D124: 30804 | E124: Duathlon | F124: Distance L | G124: Total | H124: =+SUM(H121:H123) -> 110000 | I124: =SUM(I121:I123) -> 121000 | J124: =SUM(J121:J123) -> 99000 | N124: =SUM(N121:N123) -> 285 | O124: =SUM(O121:O123) -> 356.25 | Q124: =SUM(Q121:Q123) -> 178.125 | R124: =SUM(R121:R123) -> 110000 | S124: =SUM(S121:S123) -> 137500 | U124: =SUM(U121:U123) -> 68750 | V124: =VLOOKUP(F124,AGE!F:J,4,FALSE) -> 2003 | W124: =VLOOKUP(F124,AGE!F:J,5,FALSE) -> 1922 | Y124: 0 | Z124: 0
A125: 30 | B125: 90 | C125: 1 | D125: 30901 | E125: Duathlon | F125: Distance XL | G125: Course à pied | H125: 20000 | I125: =H125*1.1 -> 22000 | J125: =H125*0.9 -> 18000 | K125: 4.5 | L125: Min/km | M125: 0.0045 | N125: =H125*M125 -> 90 | O125: =N125*1.25 -> 112.5 | Q125: =O121 -> 112.5 | R125: =N125/M125 -> 20000 | S125: =O125/M125 -> 25000 | T125: =P125/M125 -> 0 | U125: =(N125*0.75)/M125 -> 15000 | V125: =VLOOKUP(F125,AGE!F:J,4,FALSE) -> 2003 | W125: =VLOOKUP(F125,AGE!F:J,5,FALSE) -> 1922 | Y125: 0 | Z125: 0
A126: 30 | B126: 90 | C126: 2 | D126: 30902 | E126: Duathlon | F126: Distance XL | G126: Cyclisme | H126: 120000 | I126: =H126*1.1 -> 132000 | J126: =H126*0.9 -> 108000 | K126: 32 | L126: Km/h | M126: 0.001875 | N126: =H126*M126 -> 225 | O126: =N126*1.25 -> 281.25 | Q126: =O122 -> 187.5 | R126: =N126/M126 -> 120000 | S126: =O126/M126 -> 150000 | T126: =P126/M126 -> 0 | U126: =(N126*0.75)/M126 -> 90000 | V126: =VLOOKUP(F126,AGE!F:J,4,FALSE) -> 2003 | W126: =VLOOKUP(F126,AGE!F:J,5,FALSE) -> 1922 | Y126: 0 | Z126: 0
A127: 30 | B127: 90 | C127: 3 | D127: 30903 | E127: Duathlon | F127: Distance XL | G127: Course à pied | H127: 20000 | I127: 22000 | J127: 18000 | K127: 4.5 | L127: Min/km | M127: 0.0045 | N127: 90 | O127: 112.5 | Q127: 56.25 | R127: 20000 | S127: 25000 | T127: 0 | U127: 15000 | V127: =VLOOKUP(F127,AGE!F:J,4,FALSE) -> 2003 | W127: =VLOOKUP(F127,AGE!F:J,5,FALSE) -> 1922 | Y127: 0 | Z127: 0
A128: 30 | B128: 90 | C128: 4 | D128: 30904 | E128: Duathlon | F128: Distance XL | G128: Total | H128: =+SUM(H125:H127) -> 160000 | I128: =SUM(I125:I127) -> 176000 | J128: =SUM(J125:J127) -> 144000 | N128: =SUM(N125:N127) -> 405 | O128: =SUM(O125:O127) -> 506.25 | Q128: =SUM(Q125:Q127) -> 356.25 | R128: =SUM(R125:R127) -> 160000 | S128: =SUM(S125:S127) -> 200000 | U128: =SUM(U125:U127) -> 120000 | V128: =VLOOKUP(F128,AGE!F:J,4,FALSE) -> 2003 | W128: =VLOOKUP(F128,AGE!F:J,5,FALSE) -> 1922 | Y128: 0 | Z128: 0
A129: 40 | B129: 10 | C129: 1 | D129: 40101 | E129: Cross Duathlon | F129: Jeune 6-9 | G129: Course à pied | H129: 250 | I129: =H129*1.1 -> 275 | J129: =H129*0.9 -> 225 | K129: 5 | L129: Min/km | M129: 0.005 | N129: =H129*M129 -> 1.25 | O129: =N129*1.25 -> 1.5625 | P129: =N129*1.4 -> 1.75 | R129: =N129/M129 -> 250 | S129: =O129/M129 -> 312.5 | T129: =P129/M129 -> 350 | U129: =+R129/2 -> 125 | V129: =VLOOKUP(F129,AGE!F:J,4,FALSE) -> 2015 | W129: =VLOOKUP(F129,AGE!F:J,5,FALSE) -> 2012 | Y129: 0 | Z129: 0
A130: 40 | B130: 10 | C130: 2 | D130: 40102 | E130: Cross Duathlon | F130: Jeune 6-9 | G130: Vélo | H130: 1000 | I130: =H130*1.1 -> 1100 | J130: =H130*0.9 -> 900 | K130: 15 | L130: Km/h | M130: 0.004 | N130: =H130*M130 -> 4 | O130: =N130*1.25 -> 5 | P130: =N130*1.4 -> 5.6 | R130: =N130/M130 -> 1000 | S130: =O130/M130 -> 1250 | T130: =P130/M130 -> 1400 | U130: =+R130/2 -> 500 | V130: =VLOOKUP(F130,AGE!F:J,4,FALSE) -> 2015 | W130: =VLOOKUP(F130,AGE!F:J,5,FALSE) -> 2012 | Y130: 0 | Z130: 0
A131: 40 | B131: 10 | C131: 3 | D131: 40103 | E131: Cross Duathlon | F131: Jeune 6-9 | G131: Course à pied | H131: 250 | I131: 275 | J131: 225 | K131: 5 | L131: Min/km | M131: 0.005 | N131: 1.25 | O131: 1.5625 | P131: 1.75 | R131: 250 | S131: 312.5 | T131: 350 | U131: =+R131/2 -> 125 | V131: =VLOOKUP(F131,AGE!F:J,4,FALSE) -> 2015 | W131: =VLOOKUP(F131,AGE!F:J,5,FALSE) -> 2012 | Y131: 0 | Z131: 0
A132: 40 | B132: 10 | C132: 4 | D132: 40104 | E132: Cross Duathlon | F132: Jeune 6-9 | G132: Total | H132: =+SUM(H129:H131) -> 1500 | I132: =SUM(I129:I131) -> 1650 | J132: =SUM(J129:J131) -> 1350 | N132: =SUM(N129:N131) -> 6.5 | O132: =SUM(O129:O131) -> 8.125 | Q132: =SUM(Q129:Q131) -> 0 | R132: =SUM(R129:R131) -> 1500 | S132: =SUM(S129:S131) -> 1875 | U132: =SUM(U129:U131) -> 750 | V132: =VLOOKUP(F132,AGE!F:J,4,FALSE) -> 2015 | W132: =VLOOKUP(F132,AGE!F:J,5,FALSE) -> 2012 | Y132: 0 | Z132: 0
A133: 40 | B133: 20 | C133: 1 | D133: 40201 | E133: Cross Duathlon | F133: Jeune 8-11 | G133: Course à pied | H133: 500 | I133: =H133*1.1 -> 550 | J133: =H133*0.9 -> 450 | K133: 5 | L133: Min/km | M133: 0.005 | N133: =H133*M133 -> 2.5 | O133: =N133*1.25 -> 3.125 | P133: =N133*1.4 -> 3.5 | Q133: =O129 -> 1.5625 | R133: =N133/M133 -> 500 | S133: =O133/M133 -> 625 | T133: =P133/M133 -> 700 | U133: =IF(S129<J133,S129,J133) -> 312.5 | V133: =VLOOKUP(F133,AGE!F:J,4,FALSE) -> 2013 | W133: =VLOOKUP(F133,AGE!F:J,5,FALSE) -> 2010 | Y133: 0 | Z133: 0
A134: 40 | B134: 20 | C134: 2 | D134: 40202 | E134: Cross Duathlon | F134: Jeune 8-11 | G134: Vélo | H134: 2000 | I134: =H134*1.1 -> 2200 | J134: =H134*0.9 -> 1800 | K134: 15 | L134: Km/h | M134: 0.004 | N134: =H134*M134 -> 8 | O134: =N134*1.25 -> 10 | P134: =N134*1.4 -> 11.2 | Q134: =O130 -> 5 | R134: =N134/M134 -> 2000 | S134: =O134/M134 -> 2500 | T134: =P134/M134 -> 2800 | U134: =IF(S130<J134,S130,J134) -> 1250 | V134: =VLOOKUP(F134,AGE!F:J,4,FALSE) -> 2013 | W134: =VLOOKUP(F134,AGE!F:J,5,FALSE) -> 2010 | Y134: 0 | Z134: 0
A135: 40 | B135: 20 | C135: 3 | D135: 40203 | E135: Cross Duathlon | F135: Jeune 8-11 | G135: Course à pied | H135: 500 | I135: 550 | J135: 450 | K135: 5 | L135: Min/km | M135: 0.005 | N135: 2.5 | O135: 3.125 | P135: 3.5 | Q135: 1.5625 | R135: 500 | S135: 625 | T135: 700 | U135: 312.5 | V135: =VLOOKUP(F135,AGE!F:J,4,FALSE) -> 2013 | W135: =VLOOKUP(F135,AGE!F:J,5,FALSE) -> 2010 | Y135: 0 | Z135: 0
A136: 40 | B136: 20 | C136: 4 | D136: 40204 | E136: Cross Duathlon | F136: Jeune 8-11 | G136: Total | H136: =+SUM(H133:H135) -> 3000 | I136: =SUM(I133:I135) -> 3300 | J136: =SUM(J133:J135) -> 2700 | N136: =SUM(N133:N135) -> 13 | O136: =SUM(O133:O135) -> 16.25 | Q136: =SUM(Q133:Q135) -> 8.125 | R136: =SUM(R133:R135) -> 3000 | S136: =SUM(S133:S135) -> 3750 | U136: =SUM(U133:U135) -> 1875 | V136: =VLOOKUP(F136,AGE!F:J,4,FALSE) -> 2013 | W136: =VLOOKUP(F136,AGE!F:J,5,FALSE) -> 2010 | Y136: 0 | Z136: 0
A137: 40 | B137: 30 | C137: 1 | D137: 40301 | E137: Cross Duathlon | F137: Jeune 10-13 | G137: Course à pied | H137: 750 | I137: =H137*1.1 -> 825 | J137: =H137*0.9 -> 675 | K137: 5 | L137: Min/km | M137: 0.005 | N137: =H137*M137 -> 3.75 | O137: =N137*1.25 -> 4.6875 | P137: =N137*1.4 -> 5.25 | Q137: =O133 -> 3.125 | R137: =N137/M137 -> 750 | S137: =O137/M137 -> 937.5 | T137: =P137/M137 -> 1050 | U137: =IF(S133<J137,S133,J137) -> 625 | V137: =VLOOKUP(F137,AGE!F:J,4,FALSE) -> 2011 | W137: =VLOOKUP(F137,AGE!F:J,5,FALSE) -> 2008 | Y137: 0 | Z137: 0
A138: 40 | B138: 30 | C138: 2 | D138: 40302 | E138: Cross Duathlon | F138: Jeune 10-13 | G138: Cyclisme | H138: 5000 | I138: =H138*1.1 -> 5500 | J138: =H138*0.9 -> 4500 | K138: 15 | L138: Km/h | M138: 0.004 | N138: =H138*M138 -> 20 | O138: =N138*1.25 -> 25 | P138: =N138*1.4 -> 28 | Q138: =O134 -> 10 | R138: =N138/M138 -> 5000 | S138: =O138/M138 -> 6250 | T138: =P138/M138 -> 7000 | U138: =IF(S134<J138,S134,J138) -> 2500 | V138: =VLOOKUP(F138,AGE!F:J,4,FALSE) -> 2011 | W138: =VLOOKUP(F138,AGE!F:J,5,FALSE) -> 2008 | Y138: 0 | Z138: 0
A139: 40 | B139: 30 | C139: 3 | D139: 40303 | E139: Cross Duathlon | F139: Jeune 10-13 | G139: Course à pied | H139: 750 | I139: 825 | J139: 675 | K139: 5 | L139: Min/km | M139: 0.005 | N139: 3.75 | O139: 4.6875 | P139: 5.25 | Q139: 3.125 | R139: 750 | S139: 937.5 | T139: 1050 | U139: 625 | V139: =VLOOKUP(F139,AGE!F:J,4,FALSE) -> 2011 | W139: =VLOOKUP(F139,AGE!F:J,5,FALSE) -> 2008 | Y139: 0 | Z139: 0
A140: 40 | B140: 30 | C140: 4 | D140: 40304 | E140: Cross Duathlon | F140: Jeune 10-13 | G140: Total | H140: =+SUM(H137:H139) -> 6500 | I140: =SUM(I137:I139) -> 7150 | J140: =SUM(J137:J139) -> 5850 | N140: =SUM(N137:N139) -> 27.5 | O140: =SUM(O137:O139) -> 34.375 | Q140: =SUM(Q137:Q139) -> 16.25 | R140: =SUM(R137:R139) -> 6500 | S140: =SUM(S137:S139) -> 8125 | U140: =SUM(U137:U139) -> 3750 | V140: =VLOOKUP(F140,AGE!F:J,4,FALSE) -> 2011 | W140: =VLOOKUP(F140,AGE!F:J,5,FALSE) -> 2008 | Y140: 0 | Z140: 0
A141: 40 | B141: 40 | C141: 1 | D141: 40401 | E141: Cross Duathlon | F141: Jeune 12-19 | G141: Course à pied | H141: 1000 | I141: =H141*1.1 -> 1100 | J141: =H141*0.9 -> 900 | K141: 5 | L141: Min/km | M141: 0.005 | N141: =H141*M141 -> 5 | O141: =N141*1.25 -> 6.25 | P141: =N141*1.4 -> 7 | Q141: =O137 -> 4.6875 | R141: =N141/M141 -> 1000 | S141: =O141/M141 -> 1250 | T141: =P141/M141 -> 1400 | U141: =IF(S137<J141,S137,J141) -> 900 | V141: =VLOOKUP(F141,AGE!F:J,4,FALSE) -> 2009 | W141: =VLOOKUP(F141,AGE!F:J,5,FALSE) -> 2002 | Y141: 0 | Z141: 0
A142: 40 | B142: 40 | C142: 2 | D142: 40402 | E142: Cross Duathlon | F142: Jeune 12-19 | G142: Cyclisme | H142: 6000 | I142: =H142*1.1 -> 6600 | J142: =H142*0.9 -> 5400 | K142: 15 | L142: Km/h | M142: 0.004 | N142: =H142*M142 -> 24 | O142: =N142*1.25 -> 30 | P142: =N142*1.4 -> 33.6 | Q142: =O138 -> 25 | R142: =N142/M142 -> 6000 | S142: =O142/M142 -> 7500 | T142: =P142/M142 -> 8400 | U142: =IF(S138<J142,S138,J142) -> 5400 | V142: =VLOOKUP(F142,AGE!F:J,4,FALSE) -> 2009 | W142: =VLOOKUP(F142,AGE!F:J,5,FALSE) -> 2002 | Y142: 0 | Z142: 0
A143: 40 | B143: 40 | C143: 3 | D143: 40403 | E143: Cross Duathlon | F143: Jeune 12-19 | G143: Course à pied | H143: 1000 | I143: 1100 | J143: 900 | K143: 5 | L143: Min/km | M143: 0.005 | N143: 5 | O143: 6.25 | P143: 7 | Q143: 4.6875 | R143: 1000 | S143: 1250 | T143: 1400 | U143: 900 | V143: =VLOOKUP(F143,AGE!F:J,4,FALSE) -> 2009 | W143: =VLOOKUP(F143,AGE!F:J,5,FALSE) -> 2002 | Y143: 0 | Z143: 0
A144: 40 | B144: 40 | C144: 4 | D144: 40404 | E144: Cross Duathlon | F144: Jeune 12-19 | G144: Total | H144: =+SUM(H141:H143) -> 8000 | I144: =SUM(I141:I143) -> 8800 | J144: =SUM(J141:J143) -> 7200 | N144: =SUM(N141:N143) -> 34 | O144: =SUM(O141:O143) -> 42.5 | Q144: =SUM(Q141:Q143) -> 34.375 | R144: =SUM(R141:R143) -> 8000 | S144: =SUM(S141:S143) -> 10000 | U144: =SUM(U141:U143) -> 7200 | V144: =VLOOKUP(F144,AGE!F:J,4,FALSE) -> 2009 | W144: =VLOOKUP(F144,AGE!F:J,5,FALSE) -> 2002 | Y144: 0 | Z144: 0
A145: 40 | B145: 41 | C145: 1 | D145: 40411 | E145: Cross Duathlon | F145: Distance XXS | G145: Course à pied | H145: 1500 | I145: =H145*1.1 -> 1650 | J145: =H145*0.9 -> 1350 | K145: 4.5 | L145: Min/km | M145: =IF(L145="Sec/100m",((K145)/60/100),(IF(L145="Km/h",60/K145/1000,(IF(L145="Min/km",K145/1000,""))))) -> 0.0045 | N145: =H145*M145 -> 6.75 | O145: =N145*1.25 -> 8.4375 | P145: =N145*1.4 -> 9.45 | Q145: =O137 -> 4.6875 | R145: =N145/M145 -> 1500 | S145: =O145/M145 -> 1875 | T145: =P145/M145 -> 2100 | U145: =(N145*0.5)/M145 -> 750 | V145: =VLOOKUP(F145,AGE!F:J,4,FALSE) -> 2009 | W145: =VLOOKUP(F145,AGE!F:J,5,FALSE) -> 1922 | Y145: =IF(U145>R145,"Attention dist basse assimilée > distance officielle",) -> 0 | Z145: =IF(U145>J145,"Attention dist basse assimilée > distance officielle tolérance 10%",) -> 0
A146: 40 | B146: 41 | C146: 2 | D146: 40412 | E146: Cross Duathlon | F146: Distance XXS | G146: Cyclisme | H146: 4000 | I146: =H146*1.1 -> 4400 | J146: =H146*0.9 -> 3600 | K146: 15 | L146: Km/h | M146: 0.004 | N146: =H146*M146 -> 16 | O146: =N146*1.25 -> 20 | P146: 22.4 | Q146: =O138 -> 25 | R146: =N146/M146 -> 4000 | S146: =O146/M146 -> 5000 | T146: =P146/M146 -> 5600 | U146: =(N146*0.5)/M146 -> 2000 | V146: =VLOOKUP(F146,AGE!F:J,4,FALSE) -> 2009 | W146: =VLOOKUP(F146,AGE!F:J,5,FALSE) -> 1922 | Y146: 0 | Z146: 0
A147: 40 | B147: 41 | C147: 3 | D147: 40413 | E147: Cross Duathlon | F147: Distance XXS | G147: Course à pied | H147: 800 | I147: 880 | J147: 720 | K147: 4.5 | L147: Min/km | M147: 0.0045 | N147: 3.6 | O147: 4.5 | P147: 5.04 | Q147: =O139 -> 4.6875 | R147: 800 | S147: 1000 | T147: 1120 | U147: 400 | V147: =VLOOKUP(F147,AGE!F:J,4,FALSE) -> 2009 | W147: =VLOOKUP(F147,AGE!F:J,5,FALSE) -> 1922 | Y147: 0 | Z147: 0
A148: 40 | B148: 41 | C148: 4 | D148: 40414 | E148: Cross Duathlon | F148: Distance XXS | G148: Total | H148: =+SUM(H145:H147) -> 6300 | I148: =SUM(I145:I147) -> 6930 | J148: =SUM(J145:J147) -> 5670 | N148: =SUM(N145:N147) -> 26.35 | O148: =SUM(O145:O147) -> 32.9375 | Q148: =SUM(Q145:Q147) -> 34.375 | R148: =SUM(R145:R147) -> 6300 | S148: =SUM(S145:S147) -> 7875 | U148: =SUM(U145:U147) -> 3150 | V148: =VLOOKUP(F148,AGE!F:J,4,FALSE) -> 2009 | W148: =VLOOKUP(F148,AGE!F:J,5,FALSE) -> 1922 | Y148: 0 | Z148: 0
A149: 40 | B149: 50 | C149: 1 | D149: 40501 | E149: Cross Duathlon | F149: Distance XS | G149: Course à pied | H149: 2000 | I149: =H149*1.1 -> 2200 | J149: =H149*0.9 -> 1800 | K149: 4.5 | L149: Min/km | M149: 0.0045 | N149: =H149*M149 -> 9 | O149: =N149*1.25 -> 11.25 | P149: =N149*1.4 -> 12.6 | Q149: =O141 -> 6.25 | R149: =N149/M149 -> 2000 | S149: =O149/M149 -> 2500 | T149: =P149/M149 -> 2800 | U149: =IF(S145<J149,S145,J149) -> 1800 | V149: =VLOOKUP(F149,AGE!F:J,4,FALSE) -> 2009 | W149: =VLOOKUP(F149,AGE!F:J,5,FALSE) -> 1922 | Y149: 0 | Z149: =IF(U149>J149,"Attention dist basse assimilée > distance officielle tolérance 10%",) -> 0
A150: 40 | B150: 50 | C150: 2 | D150: =CONCATENATE(A150,B150,C150) -> 40502 | E150: Cross Duathlon | F150: Distance XS | G150: Cyclisme | H150: 5500 | I150: =H150*1.1 -> 6050 | J150: =H150*0.9 -> 4950 | K150: 15 | L150: Km/h | M150: 0.004 | N150: =H150*M150 -> 22 | O150: =N150*1.25 -> 27.5 | P150: 30.8 | Q150: =O142 -> 30 | R150: =N150/M150 -> 5500 | S150: =O150/M150 -> 6875 | T150: =P150/M150 -> 7700 | U150: =IF(S146<J150,S146,J150) -> 4950 | V150: =VLOOKUP(F150,AGE!F:J,4,FALSE) -> 2009 | W150: =VLOOKUP(F150,AGE!F:J,5,FALSE) -> 1922 | Y150: 0 | Z150: 0
A151: 40 | B151: 50 | C151: 3 | D151: 40503 | E151: Cross Duathlon | F151: Distance XS | G151: Course à pied | H151: 1000 | I151: 1100 | J151: 900 | K151: 4.5 | L151: Min/km | M151: 0.0045 | N151: 4.5 | O151: 5.625 | P151: 6.3 | Q151: =O143 -> 6.25 | R151: 1000 | S151: 1250 | T151: 1400 | U151: 900 | V151: =VLOOKUP(F151,AGE!F:J,4,FALSE) -> 2009 | W151: =VLOOKUP(F151,AGE!F:J,5,FALSE) -> 1922 | Y151: 0 | Z151: 0
A152: 40 | B152: 50 | C152: 4 | D152: 40504 | E152: Cross Duathlon | F152: Distance XS | G152: Total | H152: =+SUM(H149:H151) -> 8500 | I152: =SUM(I149:I151) -> 9350 | J152: =SUM(J149:J151) -> 7650 | N152: =SUM(N149:N151) -> 35.5 | O152: =SUM(O149:O151) -> 44.375 | Q152: =SUM(Q149:Q151) -> 42.5 | R152: =SUM(R149:R151) -> 8500 | S152: =SUM(S149:S151) -> 10625 | U152: =SUM(U149:U151) -> 7650 | V152: =VLOOKUP(F152,AGE!F:J,4,FALSE) -> 2009 | W152: =VLOOKUP(F152,AGE!F:J,5,FALSE) -> 1922 | Y152: 0 | Z152: 0
A153: 40 | B153: 60 | C153: 1 | D153: 40601 | E153: Cross Duathlon | F153: Distance S | G153: Course à pied | H153: 4000 | I153: =H153*1.1 -> 4400 | J153: =H153*0.9 -> 3600 | K153: 4.5 | L153: Min/km | M153: 0.0045 | N153: =H153*M153 -> 18 | O153: =N153*1.25 -> 22.5 | P153: =N153*1.4 -> 25.2 | Q153: =O149 -> 11.25 | R153: =N153/M153 -> 4000 | S153: =O153/M153 -> 5000 | T153: =P153/M153 -> 5600 | U153: =IF(S149<J153,S149,J153) -> 2500 | V153: =VLOOKUP(F153,AGE!F:J,4,FALSE) -> 2005 | W153: =VLOOKUP(F153,AGE!F:J,5,FALSE) -> 1922 | Y153: 0 | Z153: 0
A154: 40 | B154: 60 | C154: 2 | D154: 40602 | E154: Cross Duathlon | F154: Distance S | G154: Cyclisme | H154: 11000 | I154: =H154*1.1 -> 12100 | J154: =H154*0.9 -> 9900 | K154: 15 | L154: Km/h | M154: 0.004 | N154: =H154*M154 -> 44 | O154: =N154*1.25 -> 55 | P154: 61.6 | Q154: =O150 -> 27.5 | R154: =N154/M154 -> 11000 | S154: =O154/M154 -> 13750 | T154: =P154/M154 -> 15400 | U154: =IF(S150<J154,S150,J154) -> 6875 | V154: =VLOOKUP(F154,AGE!F:J,4,FALSE) -> 2005 | W154: =VLOOKUP(F154,AGE!F:J,5,FALSE) -> 1922 | Y154: 0 | Z154: 0
A155: 40 | B155: 60 | C155: 3 | D155: 40603 | E155: Cross Duathlon | F155: Distance S | G155: Course à pied | H155: 2000 | I155: 2200 | J155: 1800 | K155: 4.5 | L155: Min/km | M155: 0.0045 | N155: 9 | O155: 11.25 | P155: 12.6 | Q155: 5.625 | R155: 2000 | S155: 2500 | T155: 2800 | U155: 1250 | V155: =VLOOKUP(F155,AGE!F:J,4,FALSE) -> 2005 | W155: =VLOOKUP(F155,AGE!F:J,5,FALSE) -> 1922 | Y155: 0 | Z155: 0
A156: 40 | B156: 60 | C156: 4 | D156: 40604 | E156: Cross Duathlon | F156: Distance S | G156: Total | H156: =+SUM(H153:H155) -> 17000 | I156: =SUM(I153:I155) -> 18700 | J156: =SUM(J153:J155) -> 15300 | N156: =SUM(N153:N155) -> 71 | O156: =SUM(O153:O155) -> 88.75 | Q156: =SUM(Q153:Q155) -> 44.375 | R156: =SUM(R153:R155) -> 17000 | S156: =SUM(S153:S155) -> 21250 | U156: =SUM(U153:U155) -> 10625 | V156: =VLOOKUP(F156,AGE!F:J,4,FALSE) -> 2005 | W156: =VLOOKUP(F156,AGE!F:J,5,FALSE) -> 1922 | Y156: 0 | Z156: 0
A157: 40 | B157: 70 | C157: 1 | D157: 40701 | E157: Cross Duathlon | F157: Distance M | G157: Course à pied | H157: 8000 | I157: =H157*1.1 -> 8800 | J157: =H157*0.9 -> 7200 | K157: 4.5 | L157: Min/km | M157: 0.0045 | N157: =H157*M157 -> 36 | O157: =N157*1.25 -> 45 | P157: =N157*1.4 -> 50.4 | Q157: =O153 -> 22.5 | R157: =N157/M157 -> 8000 | S157: =O157/M157 -> 10000 | T157: =P157/M157 -> 11200 | U157: =IF(S153<J157,S153,J157) -> 5000 | V157: =VLOOKUP(F157,AGE!F:J,4,FALSE) -> 2003 | W157: =VLOOKUP(F157,AGE!F:J,5,FALSE) -> 1922 | Y157: 0 | Z157: 0
A158: 40 | B158: 70 | C158: 2 | D158: 40702 | E158: Cross Duathlon | F158: Distance M | G158: Vélo | H158: 22000 | I158: =H158*1.1 -> 24200 | J158: =H158*0.9 -> 19800 | K158: 15 | L158: Km/h | M158: 0.004 | N158: =H158*M158 -> 88 | O158: =N158*1.25 -> 110 | P158: 123.2 | Q158: =O154 -> 55 | R158: =N158/M158 -> 22000 | S158: =O158/M158 -> 27500 | T158: =P158/M158 -> 30800 | U158: =IF(S154<J158,S154,J158) -> 13750 | V158: =VLOOKUP(F158,AGE!F:J,4,FALSE) -> 2003 | W158: =VLOOKUP(F158,AGE!F:J,5,FALSE) -> 1922 | Y158: 0 | Z158: 0
A159: 40 | B159: 70 | C159: 3 | D159: 40703 | E159: Cross Duathlon | F159: Distance M | G159: Course à pied | H159: 4000 | I159: 4400 | J159: 3600 | K159: 4.5 | L159: Min/km | M159: 0.0045 | N159: 18 | O159: 22.5 | P159: 25.2 | Q159: =O155 -> 11.25 | R159: 4000 | S159: 5000 | T159: 5600 | U159: 2500 | V159: =VLOOKUP(F159,AGE!F:J,4,FALSE) -> 2003 | W159: =VLOOKUP(F159,AGE!F:J,5,FALSE) -> 1922 | Y159: 0 | Z159: 0
A160: 40 | B160: 70 | C160: 4 | D160: 40704 | E160: Cross Duathlon | F160: Distance M | G160: Total | H160: =+SUM(H157:H159) -> 34000 | I160: =SUM(I157:I159) -> 37400 | J160: =SUM(J157:J159) -> 30600 | N160: =SUM(N157:N159) -> 142 | O160: =SUM(O157:O159) -> 177.5 | Q160: =SUM(Q157:Q159) -> 88.75 | R160: =SUM(R157:R159) -> 34000 | S160: =SUM(S157:S159) -> 42500 | U160: =SUM(U157:U159) -> 21250 | V160: =VLOOKUP(F160,AGE!F:J,4,FALSE) -> 2003 | W160: =VLOOKUP(F160,AGE!F:J,5,FALSE) -> 1922 | Y160: 0 | Z160: 0
A161: 40 | B161: 80 | C161: 1 | D161: 40801 | E161: Cross Duathlon | F161: Distance L | G161: Course à pied | H161: 16000 | I161: =H161*1.1 -> 17600 | J161: =H161*0.9 -> 14400 | K161: 4.5 | L161: Min/km | M161: =IF(L161="Sec/100m",((K161)/60/100),(IF(L161="Km/h",60/K161/1000,(IF(L161="Min/km",K161/1000,""))))) -> 0.0045 | N161: =H161*M161 -> 72 | O161: =N161*1.25 -> 90 | Q161: =O157 -> 45 | R161: =N161/M161 -> 16000 | S161: =O161/M161 -> 20000 | T161: =P161/M161 -> 0 | U161: =IF(S157<J161,S157,J161) -> 10000 | V161: =VLOOKUP(F161,AGE!F:J,4,FALSE) -> 2003 | W161: =VLOOKUP(F161,AGE!F:J,5,FALSE) -> 1922 | Y161: 0 | Z161: 0
A162: 40 | B162: 80 | C162: 2 | D162: 40802 | E162: Cross Duathlon | F162: Distance L | G162: Cyclisme | H162: 44000 | I162: =H162*1.1 -> 48400 | J162: =H162*0.9 -> 39600 | K162: 15 | L162: Km/h | M162: 0.004 | N162: =H162*M162 -> 176 | O162: =N162*1.25 -> 220 | Q162: =O158 -> 110 | R162: =N162/M162 -> 44000 | S162: =O162/M162 -> 55000 | T162: =P162/M162 -> 0 | U162: =IF(S158<J162,S158,J162) -> 27500 | V162: =VLOOKUP(F162,AGE!F:J,4,FALSE) -> 2003 | W162: =VLOOKUP(F162,AGE!F:J,5,FALSE) -> 1922 | Y162: 0 | Z162: 0
A163: 40 | B163: 80 | C163: 3 | D163: 40803 | E163: Cross Duathlon | F163: Distance L | G163: Course à pied | H163: 8000 | I163: 8800 | J163: 7200 | K163: 4.5 | L163: Min/km | M163: 0.0045 | N163: 36 | O163: 45 | Q163: =O159 -> 22.5 | R163: 8000 | S163: 10000 | T163: 0 | U163: 5000 | V163: =VLOOKUP(F163,AGE!F:J,4,FALSE) -> 2003 | W163: =VLOOKUP(F163,AGE!F:J,5,FALSE) -> 1922 | Y163: 0 | Z163: 0
A164: 40 | B164: 80 | C164: 4 | D164: 40804 | E164: Cross Duathlon | F164: Distance L | G164: Total | H164: =+SUM(H161:H163) -> 68000 | I164: =SUM(I161:I163) -> 74800 | J164: =SUM(J161:J163) -> 61200 | N164: =SUM(N161:N163) -> 284 | O164: =SUM(O161:O163) -> 355 | Q164: =SUM(Q161:Q163) -> 177.5 | R164: =SUM(R161:R163) -> 68000 | S164: =SUM(S161:S163) -> 85000 | U164: =SUM(U161:U163) -> 42500 | V164: =VLOOKUP(F164,AGE!F:J,4,FALSE) -> 2003 | W164: =VLOOKUP(F164,AGE!F:J,5,FALSE) -> 1922 | Y164: 0 | Z164: 0
A165: 40 | B165: 90 | C165: 1 | D165: 40901 | E165: Cross Duathlon | F165: Distance XL | G165: Course à pied | H165: 24000 | I165: =H165*1.1 -> 26400 | J165: =H165*0.9 -> 21600 | K165: 4.5 | L165: Min/km | M165: 0.0045 | N165: =H165*M165 -> 108 | O165: =N165*1.25 -> 135 | Q165: =O161 -> 90 | R165: =N165/M165 -> 24000 | S165: =O165/M165 -> 30000 | T165: =P165/M165 -> 0 | U165: =(N165*0.75)/M165 -> 18000 | V165: =VLOOKUP(F165,AGE!F:J,4,FALSE) -> 2003 | W165: =VLOOKUP(F165,AGE!F:J,5,FALSE) -> 1922 | Y165: 0 | Z165: 0
A166: 40 | B166: 90 | C166: 2 | D166: 40902 | E166: Cross Duathlon | F166: Distance XL | G166: Cyclisme | H166: 66000 | I166: =H166*1.1 -> 72600 | J166: =H166*0.9 -> 59400 | K166: 15 | L166: Km/h | M166: 0.004 | N166: =H166*M166 -> 264 | O166: =N166*1.25 -> 330 | Q166: =O162 -> 220 | R166: =N166/M166 -> 66000 | S166: =O166/M166 -> 82500 | T166: =P166/M166 -> 0 | U166: 49500 | V166: =VLOOKUP(F166,AGE!F:J,4,FALSE) -> 2003 | W166: =VLOOKUP(F166,AGE!F:J,5,FALSE) -> 1922 | Y166: 0 | Z166: 0
A167: 40 | B167: 90 | C167: 3 | D167: 40903 | E167: Cross Duathlon | F167: Distance XL | G167: Course à pied | H167: 12000 | I167: 13200 | J167: 10800 | K167: 4.5 | L167: Min/km | M167: 0.0045 | N167: =H167*M167 -> 54 | O167: 67.5 | Q167: =O163 -> 45 | R167: 12000 | S167: 15000 | T167: 0 | U167: 9000 | V167: =VLOOKUP(F167,AGE!F:J,4,FALSE) -> 2003 | W167: =VLOOKUP(F167,AGE!F:J,5,FALSE) -> 1922 | Y167: 0 | Z167: 0
A168: 40 | B168: 90 | C168: 4 | D168: 40904 | E168: Cross Duathlon | F168: Distance XL | G168: Total | H168: =+SUM(H165:H167) -> 102000 | I168: =SUM(I165:I167) -> 112200 | J168: =SUM(J165:J167) -> 91800 | N168: =SUM(N165:N167) -> 426 | O168: =SUM(O165:O167) -> 532.5 | Q168: =SUM(Q165:Q167) -> 355 | R168: =SUM(R165:R167) -> 102000 | S168: =SUM(S165:S167) -> 127500 | U168: =SUM(U165:U167) -> 76500 | V168: =VLOOKUP(F168,AGE!F:J,4,FALSE) -> 2003 | W168: =VLOOKUP(F168,AGE!F:J,5,FALSE) -> 1922 | Y168: 0 | Z168: 0
A169: 50 | B169: 10 | C169: 1 | D169: 50101 | E169: Aquathlon | F169: Jeune 6-9 | G169: Natation | H169: 50 | I169: =H169*1.1 -> 55 | J169: =H169*0.9 -> 45 | K169: =60+50 -> 110 | L169: Sec/100m | M169: 0.01833333333 | N169: =H169*M169 -> 0.9166666667 | O169: =N169*1.25 -> 1.145833333 | P169: =N169*1.4 -> 1.283333333 | R169: =N169/M169 -> 50 | S169: =O169/M169 -> 62.5 | T169: =P169/M169 -> 70 | U169: =+R169/2 -> 25 | V169: =VLOOKUP(F169,AGE!F:J,4,FALSE) -> 2015 | W169: =VLOOKUP(F169,AGE!F:J,5,FALSE) -> 2012 | Y169: 0 | Z169: 0
A170: 50 | B170: 10 | C170: 2 | D170: 50102 | E170: Aquathlon | F170: Jeune 6-9 | G170: Course à pied | H170: 500 | I170: =H170*1.1 -> 550 | J170: =H170*0.9 -> 450 | K170: 5 | L170: Min/km | M170: 0.005 | N170: =H170*M170 -> 2.5 | O170: =N170*1.25 -> 3.125 | P170: =N170*1.4 -> 3.5 | R170: =N170/M170 -> 500 | S170: =O170/M170 -> 625 | T170: =P170/M170 -> 700 | U170: =+R170/2 -> 250 | V170: =VLOOKUP(F170,AGE!F:J,4,FALSE) -> 2015 | W170: =VLOOKUP(F170,AGE!F:J,5,FALSE) -> 2012 | Y170: 0 | Z170: 0
A171: 50 | B171: 10 | C171: 3 | D171: 50103 | E171: Aquathlon | F171: Jeune 6-9 | V171: =VLOOKUP(F171,AGE!F:J,4,FALSE) -> 2015 | W171: =VLOOKUP(F171,AGE!F:J,5,FALSE) -> 2012 | Y171: 0 | Z171: 0
A172: 50 | B172: 10 | C172: 4 | D172: 50104 | E172: Aquathlon | F172: Jeune 6-9 | G172: Total | H172: =+SUM(H169:H171) -> 550 | I172: =SUM(I169:I171) -> 605 | J172: =SUM(J169:J171) -> 495 | M172: =IF(L172="Sec/100m",((K172)/60/100),(IF(L172="Km/h",60/K172/1000,(IF(L172="Min/km",K172/1000,""))))) ->  | N172: =SUM(N169:N171) -> 3.416666667 | O172: =SUM(O169:O171) -> 4.270833333 | Q172: =SUM(Q169:Q171) -> 0 | R172: =SUM(R169:R171) -> 550 | S172: =SUM(S169:S171) -> 687.5 | U172: =SUM(U169:U171) -> 275 | V172: =VLOOKUP(F172,AGE!F:J,4,FALSE) -> 2015 | W172: =VLOOKUP(F172,AGE!F:J,5,FALSE) -> 2012 | Y172: 0 | Z172: 0
A173: 50 | B173: 20 | C173: 1 | D173: 50201 | E173: Aquathlon | F173: Jeune 8-11 | G173: Natation | H173: 100 | I173: =H173*1.1 -> 110 | J173: =H173*0.9 -> 90 | K173: =60+50 -> 110 | L173: Sec/100m | M173: =IF(L173="Sec/100m",((K173)/60/100),(IF(L173="Km/h",60/K173/1000,(IF(L173="Min/km",K173/1000,""))))) -> 0.01833333333 | N173: =H173*M173 -> 1.833333333 | O173: =N173*1.25 -> 2.291666667 | P173: =N173*1.4 -> 2.566666667 | Q173: =O169 -> 1.145833333 | R173: =N173/M173 -> 100 | S173: =O173/M173 -> 125 | T173: =P173/M173 -> 140 | U173: =IF(S169<J173,S169,J173) -> 62.5 | V173: =VLOOKUP(F173,AGE!F:J,4,FALSE) -> 2013 | W173: =VLOOKUP(F173,AGE!F:J,5,FALSE) -> 2010 | Y173: 0 | Z173: 0
A174: 50 | B174: 20 | C174: 2 | D174: 50202 | E174: Aquathlon | F174: Jeune 8-11 | G174: Course à pied | H174: 1000 | I174: =H174*1.1 -> 1100 | J174: =H174*0.9 -> 900 | K174: 5 | L174: Min/km | M174: 0.005 | N174: =H174*M174 -> 5 | O174: =N174*1.25 -> 6.25 | P174: =N174*1.4 -> 7 | Q174: =O170 -> 3.125 | R174: =N174/M174 -> 1000 | S174: =O174/M174 -> 1250 | T174: =P174/M174 -> 1400 | U174: =IF(S170<J174,S170,J174) -> 625 | V174: =VLOOKUP(F174,AGE!F:J,4,FALSE) -> 2013 | W174: =VLOOKUP(F174,AGE!F:J,5,FALSE) -> 2010 | Y174: 0 | Z174: 0
A175: 50 | B175: 20 | C175: 3 | D175: =CONCATENATE(A175,B175,C175) -> 50203 | E175: Aquathlon | F175: Jeune 8-11 | U175: 0 | V175: =VLOOKUP(F175,AGE!F:J,4,FALSE) -> 2013 | W175: =VLOOKUP(F175,AGE!F:J,5,FALSE) -> 2010 | Y175: =IF(U175>R175,"Attention dist basse assimilée > distance officielle",) -> 0 | Z175: 0
A176: 50 | B176: 20 | C176: 4 | D176: 50204 | E176: Aquathlon | F176: Jeune 8-11 | G176: Total | H176: =+SUM(H173:H175) -> 1100 | I176: =SUM(I173:I175) -> 1210 | J176: =SUM(J173:J175) -> 990 | M176: =IF(L176="Sec/100m",((K176)/60/100),(IF(L176="Km/h",60/K176/1000,(IF(L176="Min/km",K176/1000,""))))) ->  | N176: =SUM(N173:N175) -> 6.833333333 | O176: =SUM(O173:O175) -> 8.541666667 | Q176: =SUM(Q173:Q175) -> 4.270833333 | R176: =SUM(R173:R175) -> 1100 | S176: =SUM(S173:S175) -> 1375 | U176: =SUM(U173:U175) -> 687.5 | V176: =VLOOKUP(F176,AGE!F:J,4,FALSE) -> 2013 | W176: =VLOOKUP(F176,AGE!F:J,5,FALSE) -> 2010 | Y176: 0 | Z176: 0
A177: 50 | B177: 30 | C177: 1 | D177: 50301 | E177: Aquathlon | F177: Jeune 10-13 | G177: Natation | H177: 200 | I177: =H177*1.1 -> 220 | J177: =H177*0.9 -> 180 | K177: =60+50 -> 110 | L177: Sec/100m | M177: 0.01833333333 | N177: =H177*M177 -> 3.666666667 | O177: =N177*1.25 -> 4.583333333 | P177: =N177*1.4 -> 5.133333333 | Q177: =O173 -> 2.291666667 | R177: =N177/M177 -> 200 | S177: =O177/M177 -> 250 | T177: =P177/M177 -> 280 | U177: =IF(S173<J177,S173,J177) -> 125 | V177: =VLOOKUP(F177,AGE!F:J,4,FALSE) -> 2011 | W177: =VLOOKUP(F177,AGE!F:J,5,FALSE) -> 2008 | Y177: 0 | Z177: 0
A178: 50 | B178: 30 | C178: 2 | D178: 50302 | E178: Aquathlon | F178: Jeune 10-13 | G178: Course à pied | H178: 1500 | I178: =H178*1.1 -> 1650 | J178: =H178*0.9 -> 1350 | K178: 5 | L178: Min/km | M178: 0.005 | N178: =H178*M178 -> 7.5 | O178: =N178*1.25 -> 9.375 | P178: =N178*1.4 -> 10.5 | Q178: =O174 -> 6.25 | R178: =N178/M178 -> 1500 | S178: =O178/M178 -> 1875 | T178: =P178/M178 -> 2100 | U178: =IF(S174<J178,S174,J178) -> 1250 | V178: =VLOOKUP(F178,AGE!F:J,4,FALSE) -> 2011 | W178: =VLOOKUP(F178,AGE!F:J,5,FALSE) -> 2008 | Y178: 0 | Z178: 0
A179: 50 | B179: 30 | C179: 3 | D179: =CONCATENATE(A179,B179,C179) -> 50303 | E179: Aquathlon | F179: Jeune 10-13 | U179: 0 | V179: =VLOOKUP(F179,AGE!F:J,4,FALSE) -> 2011 | W179: =VLOOKUP(F179,AGE!F:J,5,FALSE) -> 2008 | Y179: 0 | Z179: 0
A180: 50 | B180: 30 | C180: 4 | D180: 50304 | E180: Aquathlon | F180: Jeune 10-13 | G180: Total | H180: =+SUM(H177:H179) -> 1700 | I180: =SUM(I177:I179) -> 1870 | J180: =SUM(J177:J179) -> 1530 | M180: =IF(L180="Sec/100m",((K180)/60/100),(IF(L180="Km/h",60/K180/1000,(IF(L180="Min/km",K180/1000,""))))) ->  | N180: =SUM(N177:N179) -> 11.16666667 | O180: =SUM(O177:O179) -> 13.95833333 | Q180: =SUM(Q177:Q179) -> 8.541666667 | R180: =SUM(R177:R179) -> 1700 | S180: =SUM(S177:S179) -> 2125 | U180: =SUM(U177:U179) -> 1375 | V180: =VLOOKUP(F180,AGE!F:J,4,FALSE) -> 2011 | W180: =VLOOKUP(F180,AGE!F:J,5,FALSE) -> 2008 | Y180: 0 | Z180: 0
A181: 50 | B181: 40 | C181: 1 | D181: 50401 | E181: Aquathlon | F181: Jeune 12-19 | G181: Natation | H181: 300 | I181: =H181*1.1 -> 330 | J181: =H181*0.9 -> 270 | K181: =60+50 -> 110 | L181: Sec/100m | M181: 0.01833333333 | N181: =H181*M181 -> 5.5 | O181: =N181*1.25 -> 6.875 | P181: =N181*1.4 -> 7.7 | Q181: =O177 -> 4.583333333 | R181: =N181/M181 -> 300 | S181: =O181/M181 -> 375 | T181: =P181/M181 -> 420 | U181: =IF(S177<J181,S177,J181) -> 250 | V181: =VLOOKUP(F181,AGE!F:J,4,FALSE) -> 2009 | W181: =VLOOKUP(F181,AGE!F:J,5,FALSE) -> 2002 | Y181: 0 | Z181: 0
A182: 50 | B182: 40 | C182: 2 | D182: 50402 | E182: Aquathlon | F182: Jeune 12-19 | G182: Course à pied | H182: 2000 | I182: =H182*1.1 -> 2200 | J182: =H182*0.9 -> 1800 | K182: 5 | L182: Min/km | M182: 0.005 | N182: =H182*M182 -> 10 | O182: =N182*1.25 -> 12.5 | P182: =N182*1.4 -> 14 | Q182: =O178 -> 9.375 | R182: =N182/M182 -> 2000 | S182: =O182/M182 -> 2500 | T182: =P182/M182 -> 2800 | U182: =IF(S178<J182,S178,J182) -> 1800 | V182: =VLOOKUP(F182,AGE!F:J,4,FALSE) -> 2009 | W182: =VLOOKUP(F182,AGE!F:J,5,FALSE) -> 2002 | Y182: 0 | Z182: =IF(U182>J182,"Attention dist basse assimilée > distance officielle tolérance 10%",) -> 0
A183: 50 | B183: 40 | C183: 3 | D183: 50403 | E183: Aquathlon | F183: Jeune 12-19 | U183: 0 | V183: =VLOOKUP(F183,AGE!F:J,4,FALSE) -> 2009 | W183: =VLOOKUP(F183,AGE!F:J,5,FALSE) -> 2002 | Y183: 0 | Z183: =IF(U183>J183,"Attention dist basse assimilée > distance officielle tolérance 10%",) -> 0
A184: 50 | B184: 40 | C184: 4 | D184: 50404 | E184: Aquathlon | F184: Jeune 12-19 | G184: Total | H184: =+SUM(H181:H183) -> 2300 | I184: =SUM(I181:I183) -> 2530 | J184: =SUM(J181:J183) -> 2070 | M184: =IF(L184="Sec/100m",((K184)/60/100),(IF(L184="Km/h",60/K184/1000,(IF(L184="Min/km",K184/1000,""))))) ->  | N184: =SUM(N181:N183) -> 15.5 | O184: =SUM(O181:O183) -> 19.375 | Q184: =SUM(Q181:Q183) -> 13.95833333 | R184: =SUM(R181:R183) -> 2300 | S184: =SUM(S181:S183) -> 2875 | U184: =SUM(U181:U183) -> 2050 | V184: =VLOOKUP(F184,AGE!F:J,4,FALSE) -> 2009 | W184: =VLOOKUP(F184,AGE!F:J,5,FALSE) -> 2002 | Y184: 0 | Z184: 0
A185: 50 | B185: 41 | C185: 1 | D185: 50411 | E185: Aquathlon | F185: Distance XXS | G185: Natation | H185: 250 | I185: =H185*1.1 -> 275 | J185: =H185*0.9 -> 225 | K185: 105 | L185: Sec/100m | M185: 0.0175 | N185: =H185*M185 -> 4.375 | O185: =N185*1.25 -> 5.46875 | P185: =N185*1.4 -> 6.125 | Q185: =O177 -> 4.583333333 | R185: =N185/M185 -> 250 | S185: =O185/M185 -> 312.5 | T185: =P185/M185 -> 350 | U185: =(N185*0.5)/M185 -> 125 | V185: =VLOOKUP(F185,AGE!F:J,4,FALSE) -> 2009 | W185: =VLOOKUP(F185,AGE!F:J,5,FALSE) -> 1922 | Y185: =IF(U185>R185,"Attention dist basse assimilée > distance officielle",) -> 0 | Z185: =IF(U185>J185,"Attention dist basse assimilée > distance officielle tolérance 10%",) -> 0
A186: 50 | B186: 41 | C186: 2 | D186: 50412 | E186: Aquathlon | F186: Distance XXS | G186: Course à pied | H186: 1500 | I186: =H186*1.1 -> 1650 | J186: =H186*0.9 -> 1350 | K186: 4.5 | L186: Min/km | M186: 0.0045 | N186: =H186*M186 -> 6.75 | O186: =N186*1.25 -> 8.4375 | P186: =N186*1.4 -> 9.45 | Q186: =O178 -> 9.375 | R186: =N186/M186 -> 1500 | S186: =O186/M186 -> 1875 | T186: =P186/M186 -> 2100 | U186: =(N186*0.5)/M186 -> 750 | V186: =VLOOKUP(F186,AGE!F:J,4,FALSE) -> 2009 | W186: =VLOOKUP(F186,AGE!F:J,5,FALSE) -> 1922 | Y186: 0 | Z186: 0
A187: 50 | B187: 41 | C187: 3 | D187: 50413 | E187: Aquathlon | F187: Distance XXS | V187: =VLOOKUP(F187,AGE!F:J,4,FALSE) -> 2009 | W187: =VLOOKUP(F187,AGE!F:J,5,FALSE) -> 1922 | Y187: 0 | Z187: 0
A188: 50 | B188: 41 | C188: 4 | D188: 50414 | E188: Aquathlon | F188: Distance XXS | G188: Total | H188: =+SUM(H185:H187) -> 1750 | I188: =SUM(I185:I187) -> 1925 | J188: =SUM(J185:J187) -> 1575 | M188: =IF(L188="Sec/100m",((K188)/60/100),(IF(L188="Km/h",60/K188/1000,(IF(L188="Min/km",K188/1000,""))))) ->  | N188: =SUM(N185:N187) -> 11.125 | O188: =SUM(O185:O187) -> 13.90625 | Q188: =SUM(Q185:Q187) -> 13.95833333 | R188: =SUM(R185:R187) -> 1750 | S188: =SUM(S185:S187) -> 2187.5 | U188: =SUM(U185:U187) -> 875 | V188: =VLOOKUP(F188,AGE!F:J,4,FALSE) -> 2009 | W188: =VLOOKUP(F188,AGE!F:J,5,FALSE) -> 1922 | Y188: 0 | Z188: 0
A189: 50 | B189: 50 | C189: 1 | D189: 50501 | E189: Aquathlon | F189: Distance XS | G189: Natation | H189: 500 | I189: =H189*1.1 -> 550 | J189: =H189*0.9 -> 450 | K189: 105 | L189: Sec/100m | M189: 0.0175 | N189: =H189*M189 -> 8.75 | O189: =N189*1.25 -> 10.9375 | P189: =N189*1.4 -> 12.25 | Q189: =O181 -> 6.875 | R189: =N189/M189 -> 500 | S189: =O189/M189 -> 625 | T189: =P189/M189 -> 700 | U189: =IF(S185<J189,S185,J189) -> 312.5 | V189: =VLOOKUP(F189,AGE!F:J,4,FALSE) -> 2009 | W189: =VLOOKUP(F189,AGE!F:J,5,FALSE) -> 1922 | Y189: 0 | Z189: 0
A190: 50 | B190: 50 | C190: 2 | D190: 50502 | E190: Aquathlon | F190: Distance XS | G190: Course à pied | H190: 2500 | I190: =H190*1.1 -> 2750 | J190: =H190*0.9 -> 2250 | K190: 4.5 | L190: Min/km | M190: 0.0045 | N190: =H190*M190 -> 11.25 | O190: =N190*1.25 -> 14.0625 | P190: =N190*1.4 -> 15.75 | Q190: =O182 -> 12.5 | R190: =N190/M190 -> 2500 | S190: =O190/M190 -> 3125 | T190: =P190/M190 -> 3500 | U190: =IF(S186<J190,S186,J190) -> 1875 | V190: =VLOOKUP(F190,AGE!F:J,4,FALSE) -> 2009 | W190: =VLOOKUP(F190,AGE!F:J,5,FALSE) -> 1922 | Y190: 0 | Z190: 0
A191: 50 | B191: 50 | C191: 3 | D191: 50503 | E191: Aquathlon | F191: Distance XS | U191: 0 | V191: =VLOOKUP(F191,AGE!F:J,4,FALSE) -> 2009 | W191: =VLOOKUP(F191,AGE!F:J,5,FALSE) -> 1922 | Y191: 0 | Z191: 0
A192: 50 | B192: 50 | C192: 4 | D192: 50504 | E192: Aquathlon | F192: Distance XS | G192: Total | H192: =+SUM(H189:H191) -> 3000 | I192: =SUM(I189:I191) -> 3300 | J192: =SUM(J189:J191) -> 2700 | M192: =IF(L192="Sec/100m",((K192)/60/100),(IF(L192="Km/h",60/K192/1000,(IF(L192="Min/km",K192/1000,""))))) ->  | N192: =SUM(N189:N191) -> 20 | O192: =SUM(O189:O191) -> 25 | Q192: =SUM(Q189:Q191) -> 19.375 | R192: =SUM(R189:R191) -> 3000 | S192: =SUM(S189:S191) -> 3750 | U192: =SUM(U189:U191) -> 2187.5 | V192: =VLOOKUP(F192,AGE!F:J,4,FALSE) -> 2009 | W192: =VLOOKUP(F192,AGE!F:J,5,FALSE) -> 1922 | Y192: 0 | Z192: 0
A193: 50 | B193: 60 | C193: 1 | D193: 50601 | E193: Aquathlon | F193: Distance S | G193: Natation | H193: 1000 | I193: =H193*1.1 -> 1100 | J193: =H193*0.9 -> 900 | K193: 105 | L193: Sec/100m | M193: =IF(L193="Sec/100m",((K193)/60/100),(IF(L193="Km/h",60/K193/1000,(IF(L193="Min/km",K193/1000,""))))) -> 0.0175 | N193: =H193*M193 -> 17.5 | O193: =N193*1.25 -> 21.875 | P193: =N193*1.4 -> 24.5 | Q193: =O189 -> 10.9375 | R193: =N193/M193 -> 1000 | S193: =O193/M193 -> 1250 | T193: =P193/M193 -> 1400 | U193: =IF(S189<J193,S189,J193) -> 625 | V193: =VLOOKUP(F193,AGE!F:J,4,FALSE) -> 2005 | W193: =VLOOKUP(F193,AGE!F:J,5,FALSE) -> 1922 | Y193: 0 | Z193: 0
A194: 50 | B194: 60 | C194: 2 | D194: 50602 | E194: Aquathlon | F194: Distance S | G194: Course à pied | H194: 5000 | I194: =H194*1.1 -> 5500 | J194: =H194*0.9 -> 4500 | K194: 4.5 | L194: Min/km | M194: 0.0045 | N194: =H194*M194 -> 22.5 | O194: =N194*1.25 -> 28.125 | P194: =N194*1.4 -> 31.5 | Q194: =O190 -> 14.0625 | R194: =N194/M194 -> 5000 | S194: =O194/M194 -> 6250 | T194: =P194/M194 -> 7000 | U194: =IF(S190<J194,S190,J194) -> 3125 | V194: =VLOOKUP(F194,AGE!F:J,4,FALSE) -> 2005 | W194: =VLOOKUP(F194,AGE!F:J,5,FALSE) -> 1922 | Y194: 0 | Z194: 0
A195: 50 | B195: 60 | C195: 3 | D195: 50603 | E195: Aquathlon | F195: Distance S | U195: 0 | V195: =VLOOKUP(F195,AGE!F:J,4,FALSE) -> 2005 | W195: =VLOOKUP(F195,AGE!F:J,5,FALSE) -> 1922 | Y195: 0 | Z195: 0
A196: 50 | B196: 60 | C196: 4 | D196: 50604 | E196: Aquathlon | F196: Distance S | G196: Total | H196: =+SUM(H193:H195) -> 6000 | I196: =SUM(I193:I195) -> 6600 | J196: =SUM(J193:J195) -> 5400 | M196: =IF(L196="Sec/100m",((K196)/60/100),(IF(L196="Km/h",60/K196/1000,(IF(L196="Min/km",K196/1000,""))))) ->  | N196: =SUM(N193:N195) -> 40 | O196: =SUM(O193:O195) -> 50 | Q196: =SUM(Q193:Q195) -> 25 | R196: =SUM(R193:R195) -> 6000 | S196: =SUM(S193:S195) -> 7500 | U196: =SUM(U193:U195) -> 3750 | V196: =VLOOKUP(F196,AGE!F:J,4,FALSE) -> 2005 | W196: =VLOOKUP(F196,AGE!F:J,5,FALSE) -> 1922 | Y196: 0 | Z196: 0
A197: 50 | B197: 70 | C197: 1 | D197: 50701 | E197: Aquathlon | F197: Distance M | G197: Natation | H197: 2000 | I197: =H197*1.1 -> 2200 | J197: =H197*0.9 -> 1800 | K197: 105 | L197: Sec/100m | M197: 0.0175 | N197: =H197*M197 -> 35 | O197: =N197*1.25 -> 43.75 | P197: =N197*1.4 -> 49 | Q197: =O193 -> 21.875 | R197: =N197/M197 -> 2000 | S197: =O197/M197 -> 2500 | T197: =P197/M197 -> 2800 | U197: =IF(S193<J197,S193,J197) -> 1250 | V197: =VLOOKUP(F197,AGE!F:J,4,FALSE) -> 2003 | W197: =VLOOKUP(F197,AGE!F:J,5,FALSE) -> 1922 | Y197: 0 | Z197: 0
A198: 50 | B198: 70 | C198: 2 | D198: 50702 | E198: Aquathlon | F198: Distance M | G198: Course à pied | H198: 10000 | I198: =H198*1.1 -> 11000 | J198: =H198*0.9 -> 9000 | K198: 4.5 | L198: Min/km | M198: 0.0045 | N198: =H198*M198 -> 45 | O198: =N198*1.25 -> 56.25 | P198: =N198*1.4 -> 63 | Q198: =O194 -> 28.125 | R198: =N198/M198 -> 10000 | S198: =O198/M198 -> 12500 | T198: =P198/M198 -> 14000 | U198: =IF(S194<J198,S194,J198) -> 6250 | V198: =VLOOKUP(F198,AGE!F:J,4,FALSE) -> 2003 | W198: =VLOOKUP(F198,AGE!F:J,5,FALSE) -> 1922 | Y198: 0 | Z198: 0
A199: 50 | B199: 70 | C199: 3 | D199: 50703 | E199: Aquathlon | F199: Distance M | U199: 0 | V199: =VLOOKUP(F199,AGE!F:J,4,FALSE) -> 2003 | W199: =VLOOKUP(F199,AGE!F:J,5,FALSE) -> 1922 | Y199: 0 | Z199: 0
A200: 50 | B200: 70 | C200: 4 | D200: 50704 | E200: Aquathlon | F200: Distance M | G200: Total | H200: =+SUM(H197:H199) -> 12000 | I200: =SUM(I197:I199) -> 13200 | J200: =SUM(J197:J199) -> 10800 | M200: =IF(L200="Sec/100m",((K200)/60/100),(IF(L200="Km/h",60/K200/1000,(IF(L200="Min/km",K200/1000,""))))) ->  | N200: =SUM(N197:N199) -> 80 | O200: =SUM(O197:O199) -> 100 | Q200: =SUM(Q197:Q199) -> 50 | R200: =SUM(R197:R199) -> 12000 | S200: =SUM(S197:S199) -> 15000 | U200: =SUM(U197:U199) -> 7500 | V200: =VLOOKUP(F200,AGE!F:J,4,FALSE) -> 2003 | W200: =VLOOKUP(F200,AGE!F:J,5,FALSE) -> 1922 | Y200: 0 | Z200: 0
A201: 50 | B201: 80 | C201: 1 | D201: 50801 | E201: Aquathlon | F201: Distance L | G201: Natation | H201: 3000 | I201: =H201*1.1 -> 3300 | J201: =H201*0.9 -> 2700 | K201: 105 | L201: Sec/100m | M201: 0.0175 | N201: =H201*M201 -> 52.5 | O201: =N201*1.25 -> 65.625 | Q201: =O197 -> 43.75 | R201: =N201/M201 -> 3000 | S201: =O201/M201 -> 3750 | T201: =P201/M201 -> 0 | U201: =IF(S197<J201,S197,J201) -> 2500 | V201: =VLOOKUP(F201,AGE!F:J,4,FALSE) -> 2003 | W201: =VLOOKUP(F201,AGE!F:J,5,FALSE) -> 1922 | Y201: 0 | Z201: 0
... 145 more rows

Sheet AGE (hidden)
B1: MOIS A PARTIR DUQUEL ON AFFICHE LES CATEGORIES D'AGE DE LA SAISON SUIVANTE : | D1: ANNEE AFFICHEE | F1: Course | G1: Age atteint au cours de la saison mini | H1: Age atteint au cours de la saison maxi | I1: ANNEE mini | J1: ANNEE maxi
B2: 9 | D2: =IF(MONTH(TODAY())>=B2,YEAR(TODAY())+1,YEAR(TODAY())) -> 2021 | F2: Jeune 6-9 | G2: 6 | H2: 9 | I2: =$D$2-G2 -> 2015 | J2: =$D$2-H2 -> 2012
F3: Jeune 8-11 | G3: 8 | H3: 11 | I3: =$D$2-G3 -> 2013 | J3: 2010
F4: Jeune 10-13 | G4: 10 | H4: 13 | I4: 2011 | J4: 2008
F5: Jeune 12-19 | G5: 12 | H5: 19 | I5: 2009 | J5: 2002
F6: Distance XXS | G6: 12 | H6: 99 | I6: 2009 | J6: 1922
F7: Distance XS | G7: 12 | H7: 99 | I7: 2009 | J7: 1922
F8: Distance S | G8: 16 | H8: 99 | I8: 2005 | J8: 1922
F9: Distance M | G9: 18 | H9: 99 | I9: 2003 | J9: 1922
F10: Distance L | G10: 18 | H10: 99 | I10: 2003 | J10: 1922
F11: Distance XL | G11: 18 | H11: 99 | I11: 2003 | J11: 1922
F12: Distance XXL | G12: 18 | H12: 99 | I12: 2003 | J12: 1922

Sheet Visualisation
A1: V 6 | C1: Saisie case en Jaune | J1: 4 | K1: 5 | L1: 6 | M1: 7 | N1: 11 | O1: 12 | P1: 13 | Q1: 14 | R1: 16 | S1: 17 | T1: 18
C4: Triathlon, Duathlon, Aquathlon, Swimrun Distances possibles | K4: Epreuve Officielle | N4: =IF(OR(C12="Raid",C12="Bike_and_Run",C12="Swim_Run"),"","Epreuve Assimilée") -> Epreuve Assimilée
C5: Sélectionner la Compétition | D5: Sélectionner le type d'épreuve | J5: Discipline | K5: Distance Officielle | L5: Tolérance Max +10% | M5: Tolérance Min -10% | N5: Limite Haute 25% (distance) | O5: Limite Haute 40% jeunes (Distance) | P5: Limite Basse (distance)
E6: =VLOOKUP(C6,'Liste déroulante'!$B$5:$C$16,2,FALSE) ->  | F6: =VLOOKUP(D6,'Liste déroulante'!E5:F15,2,FALSE) ->  | G6: 1 | H6: =CONCATENATE(E6,F6,G6) ->  | I6: =IF(COUNTIF(Données!D:D,Visualisation!H6)>0, "vrai","faux") -> faux | J6: =IF($I6="FAUX","",VLOOKUP($H6,Données!$D$5:$U$346,$J$1,FALSE)) ->  | K6: =IF($I6="FAUX","",VLOOKUP($H6,Données!$D$5:$U$346,K1,FALSE)) ->  | L6: =IF($I6="FAUX","",VLOOKUP($H6,Données!$D$5:$U$346,L1,FALSE)) ->  | M6: =IF($I6="FAUX","",VLOOKUP($H6,Données!$D$5:$U$346,M1,FALSE)) ->  | N6: =IF($I6="FAUX","",VLOOKUP($H6,Données!$D$5:$U$346,R1,FALSE)) ->  | O6: =IF($I6="FAUX","",VLOOKUP($H6,Données!$D$5:$U$346,S1,FALSE)) ->  | P6: =IF($I6="FAUX","",VLOOKUP($H6,Données!$D$5:$U$346,T1,FALSE)) -> 
G7: 2 | H7: =CONCATENATE(E6,F6,G7) ->  | I7: =IF(COUNTIF(Données!D:D,Visualisation!H7)>0, "vrai","faux") -> faux | J7: =IF($I7="FAUX","",VLOOKUP($H7,Données!$D$5:$U$346,J1,FALSE)) ->  | K7: =IF($I7="FAUX","",VLOOKUP($H7,Données!$D$5:$U$346,K1,FALSE)) ->  | L7: =IF($I7="FAUX","",VLOOKUP($H7,Données!$D$5:$U$346,L1,FALSE)) ->  | M7: =IF($I7="FAUX","",VLOOKUP($H7,Données!$D$5:$U$346,M1,FALSE)) ->  | N7: =IF($I7="FAUX","",VLOOKUP($H7,Données!$D$5:$U$346,R1,FALSE)) ->  | O7: =IF($I7="FAUX","",VLOOKUP($H7,Données!$D$5:$U$346,S1,FALSE)) ->  | P7: =IF($I7="FAUX","",VLOOKUP($H7,Données!$D$5:$U$346,T1,FALSE)) -> 
G8: =IF(OR(C6="Aquathlon",C6="Cyclathlon_Vetathlon",C6="Swim_Bike"),"",3) -> 3 | H8: =CONCATENATE(E6,F6,G8) ->  | I8: =IF(COUNTIF(Données!D:D,Visualisation!H8)>0, "vrai","faux") -> faux | J8: =IF($I8="FAUX","",VLOOKUP($H8,Données!$D$5:$U$346,J1,FALSE)) ->  | K8: =IF($I8="FAUX","",VLOOKUP($H8,Données!$D$5:$U$346,K1,FALSE)) ->  | L8: =IF($I8="FAUX","",VLOOKUP($H8,Données!$D$5:$U$346,L1,FALSE)) ->  | M8: =IF($I8="FAUX","",VLOOKUP($H8,Données!$D$5:$U$346,M1,FALSE)) ->  | N8: =IF($I8="FAUX","",VLOOKUP($H8,Données!$D$5:$U$346,R1,FALSE)) ->  | O8: =IF($I8="FAUX","",VLOOKUP($H8,Données!$D$5:$U$346,S1,FALSE)) ->  | P8: =IF($I8="FAUX","",VLOOKUP($H8,Données!$D$5:$U$346,T1,FALSE)) -> 
G9: 4 | H9: =CONCATENATE(E6,F6,G9) ->  | I9: =IF(COUNTIF(Données!D:D,Visualisation!H9)>0, "vrai","faux") -> faux | J9: =IF($I9="FAUX","",VLOOKUP($H9,Données!$D$5:$U$346,J1,FALSE)) ->  | K9: =IF($I9="FAUX","",VLOOKUP($H9,Données!$D$5:$U$346,K1,FALSE)) ->  | L9: =IF($I9="FAUX","",VLOOKUP($H9,Données!$D$5:$U$346,L1,FALSE)) ->  | M9: =IF($I9="FAUX","",VLOOKUP($H9,Données!$D$5:$U$346,M1,FALSE)) ->  | N9: =IF($I9="FAUX","",VLOOKUP($H9,Données!$D$5:$U$346,R1,FALSE)) ->  | O9: =IF($I9="FAUX","",VLOOKUP($H9,Données!$D$5:$U$346,S1,FALSE)) ->  | P9: =IF($I9="FAUX","",VLOOKUP($H9,Données!$D$5:$U$346,T1,FALSE)) -> 
C11: Contrôlez vos distances | J11: Discipline | K11: Saisir les distances en mètre | L11: Epreuve Officielle | N11: =IF(OR(C12="Raid",C12="Bike and Run",C12="Swim Run"),"","Epreuve Assimilée") -> Epreuve Assimilée | Q11: =CONCATENATE("Année de naissance saison ",AGE!D2) -> Année de naissance saison 2021
C12: =+C6 -> 0 | D12: =+D6 -> 0 | J12: =+J6 ->  | L12: =IF($K12=0,"",IF(AND($K12>=M6,$K12<=L6),"Approuvé","Refusé")) ->  | N12: =IF(K12=0,"",IF(O6=0,"",(IF(OR(K12>O6,K12<P6),"Refusé","Approuvé")))) ->  | Q12: Mini
J13: =+J7 ->  | L13: =IF($K13=0,"",IF(L7="","",IF(AND($K13>=M7,$K13<=L7),"Approuvé","Refusé"))) ->  | N13: =IF(K13=0,"",IF(O7="","",IF(O7=0,"",(IF(OR(K13>O7,K13<P7),"Refusé","Approuvé"))))) ->  | Q13: =IF($I9="FAUX","",VLOOKUP($H9,Données!$D$5:$W$346,19,FALSE)) -> 
J14: =+J8 ->  | L14: =IF($K14=0,"",IF(L8="","",IF(AND($K14>=M8,$K14<=L8),"Approuvé","Refusé"))) ->  | N14: =IF(K14=0,"",IF(O8="","",IF(O8=0,"",(IF(OR(K14>O8,K14<P8),"Refusé","Approuvé"))))) ->  | Q14: Maxi
K15: =IF(J14="",SUM(K12:K13),SUM(K12:K14)) -> 0 | L15: =IF(L12="Refusé","Refusé",IF(L13="Refusé","Refusé",IF(L14="Refusé","Refusé",IF($K$15=0,"",IF(AND(K15>=M9,K15<=L9),"Approuvé","Refusé"))))) ->  | N15: =IF(N12="Refusé","Refusé",IF(N13="Refusé","Refusé",IF(N14="Refusé","Refusé",IF($K$15=0,"",IF(AND(K15>=P9,K15<=N9),"Approuvé",IF(P9="","","Refusé")))))) ->  | Q15: =IF($I9="FAUX","",VLOOKUP($H9,Données!$D$5:$W$346,20,FALSE)) -> 
C19: Bike&Run & Raid Temps estimé | J19: Epreuve Officielle | N19: =CONCATENATE("Année de naissance saison ",AGE!D2) -> Année de naissance saison 2021
C20: Sélectionner la Compétition | D20: Sélectionner le type d'épreuve | J20: Temps Moyen | K20: Temps Max | L20: Temps Min | N20: Mini
E21: =VLOOKUP(C21,'Liste déroulante'!$B$5:$C$16,2,FALSE) ->  | F21: =VLOOKUP(D21,'Liste déroulante'!E5:F15,2,FALSE) ->  | G21: 1 | H21: =CONCATENATE(E21,F21,G21) ->  | I21: =IF(COUNTIF(Données!D:D,Visualisation!H21)>0, "vrai","faux") -> faux | J21: =IF($I21="FAUX","",VLOOKUP($H21,Données!$D$5:$U$346,N1,FALSE)) ->  | K21: =IF($I21="FAUX","",VLOOKUP($H21,Données!$D$5:$U$346,O1,FALSE)) ->  | L21: =IF($I21="FAUX","",VLOOKUP($H21,Données!$D$5:$U$346,Q1,FALSE)) ->  | N21: =IF($I21="FAUX","",VLOOKUP($H21,Données!$D$5:$W$345,19)) -> 
J22: =IF(J21="","",J21/60/24) ->  | K22: =IF(J21="","",K21/60/24) ->  | L22: =IF(J21="","",L21/60/24) ->  | N22: Maxi
N23: =IF($I21="FAUX","",VLOOKUP($H21,Données!$D$5:$W$345,20)) -> 

Sheet Liste déroulante (hidden)
B1: Distance officielle | Y1: MOIS
U2: 10 | V2: Jeune 6-9 | Y2: 1
C3: colonne A de la page DONNEES | F3: colonne B de la page DONNEES | U3: 20 | V3: Jeune 8-11 | Y3: 2
B4: Type d'épreuve | E4: Catégorie d'âge | U4: 30 | V4: Jeunes 10-13 | Y4: 3
B5: Aquathlon | C5: 50 | E5: Distance L | F5: 80 | H5: Aquathlon | I5: Jeune 6-9 | J5: Jeune 8-11 | K5: Jeune 10-13 | L5: Jeune 12-19 | M5: Distance XXS | N5: Distance XS | O5: Distance S | P5: Distance M | Q5: Distance L | R5: Distance XL | U5: 40 | V5: Jeune 12-19 | Y5: 4
B6: Bike_and_Run | C6: 60 | E6: Distance M | F6: 70 | H6: Cross_Duathlon | I6: Jeune 6-9 | J6: Jeune 8-11 | K6: Jeune 10-13 | L6: Jeune 12-19 | M6: Distance XXS | N6: Distance XS | O6: Distance S | P6: Distance M | Q6: Distance L | R6: Distance XL | U6: 41 | V6: Distance XXS | Y6: 5
B7: Cross_Duathlon | C7: 40 | E7: Distance S | F7: 60 | H7: Cross_Triathlon | I7: Jeune 6-9 | J7: Jeune 8-11 | K7: Jeune 10-13 | L7: Jeune 12-19 | M7: Distance XXS | N7: Distance XS | O7: Distance S | P7: Distance M | Q7: Distance L | R7: Distance XL | U7: 50 | V7: Distance XS | Y7: 6
B8: Cross_Triathlon | C8: 20 | E8: Distance XL | F8: 90 | H8: Duathlon | I8: Jeune 6-9 | J8: Jeune 8-11 | K8: Jeune 10-13 | L8: Jeune 12-19 | M8: Distance XXS | N8: Distance XS | O8: Distance S | P8: Distance M | Q8: Distance L | R8: Distance XL | U8: 60 | V8: Distance S | Y8: 7
B9: Duathlon | C9: 30 | E9: Distance XS | F9: 50 | H9: Duathlon_des_neiges | I9: Distance XS | J9: Distance S | K9: Distance M | U9: 70 | V9: Distance M | Y9: 8
B10: Duathlon_des_neiges | C10: 80 | E10: Distance XXL | F10: 91 | H10: Triathlon | I10: Jeune 6-9 | J10: Jeune 8-11 | K10: Jeune 10-13 | L10: Jeune 12-19 | M10: Distance XXS | N10: Distance XS | O10: Distance S | P10: Distance M | Q10: Distance L | R10: Distance XL | S10: Distance XXL | U10: 80 | V10: Distance L | Y10: 9
B11: Raid | C11: 90 | E11: Jeune 10-13 | F11: 30 | H11: Triathon_des_neiges | I11: Distance XS | J11: Distance S | K11: Distance M | U11: 90 | V11: Distance XL | Y11: 10
B12: Swim_Run | C12: 91 | E12: Jeune 12-19 | F12: 40 | H12: Swim_Run | I12: Distance XXS | J12: Distance XS | K12: Distance S | L12: Distance M | M12: Distance L | N12: Distance XL | U12: 91 | V12: Distance XXL | Y12: 11
B13: Triathlon | C13: 10 | E13: Jeune 6-9 | F13: 10 | H13: Cyclathlon_Vetathlon | I13: Jeune 6-9 | J13: Jeune 8-11 | K13: Jeune 10-13 | L13: Jeune 12-19 | M13: Distance XXS | N13: Distance XS | O13: Distance S | P13: Distance M | Q13: Distance L | R13: Distance XL | U13: 91 | V13: Distance XXL | Y13: 12
B14: Triathon_des_neiges | C14: 70 | E14: Jeune 8-11 | F14: 20 | H14: Swim_Bike | I14: Jeune 6-9 | J14: Jeune 8-11 | K14: Jeune 10-13 | L14: Jeune 12-19 | M14: Distance XXS | N14: Distance XS | O14: Distance S | P14: Distance M | Q14: Distance L | R14: Distance XL
B15: Cyclathlon_Vetathlon | C15: 92 | E15: Distance XXS | F15: 41 | H15: Bike_and_Run | I15: Jeune 6-9 | J15: Jeune 8-11 | K15: Jeune 10-13 | L15: Jeune 12-19 | M15: Distance XXS | N15: Distance XS | O15: Distance S | P15: Distance M | Q15: Distance L
B16: Swim_Bike | C16: 93 | H16: Raid | I16: Jeune 6-9 | J16: Jeune 8-11 | K16: Jeune 10-13 | L16: Jeune 12-19 | M16: Distance XXS | N16: Distance XS | O16: Distance S | P16: Distance M | Q16: Distance L | R16: Distance XL | S16: Distance XXL
